{"text_format":"1","workbook":"xlsx","n_sheets":9,"sheets":["données","eleves","profs","notes","niveaux","classes","emplTpsP","emplTpsE","TC"],"not_rendered":{"charts":0,"images":0,"macros":1,"external_links":0,"defined_names":7,"comments":3,"pivot_tables":0},"unopened":[],"bounds":{"document_bytes":16777216,"sheet_cells":100000,"rows_first":2000,"rows_last":500,"rows_between":2000,"halvings":0,"cell_chars":16384,"cell_head_chars":4096},"cells_cut":0,"cells_raw":0,"read":"whole","date_system":"1900"}

{"sheet":"données","index":0,"n_rows":39,"n_cols":22,"rows_kept":39,"cut":false,"hidden":false,"merged":[]}
["Temps présence maxi profs avec élèves: 25h",null,null,null,null,null,null,"Anglais","Français","Composition Française","Conduite","EDHC","EPS","Expression Ecrite","Histoire Géographie","Mathématiques","Orthographe Grammaire","Physique Chimie","SVT","Arts Plastiques","LV2","Philosophie"]
["(+temps de préparation des cours et correction des devoirs, conseils de classes…)",null,null,null,null,null,null,"HOFFMANN Yannick","BERTHELIER Josette","BRULEBOIS Thomas","COURVOISIER Gérald","MONNIER Bernard","MONNERET Véronique","SENOT Xavier","BOURDY William","BOISSON Jean","DUFOUR Valérie","LAMBERGER Stéphane","MAIROT Virginie","ARNAUD Yann","BAILLY Thierry","SENOT Xavier"]
["classes","âges","degrés","cycles","prim/second","durées",null,"MAIRE Yves",null,"SENOT Xavier",null,null,"ONCLE sophie",null,"PAGET François","LEGRAND Yvan",null,null,"PUILLET Michel"]
["maternelle","4-5 ans",null,"cycle 1",null,"-",null,"MANNIER Gilbert",null,null,null,null,null,null,"POUBO sam","MATHIEU Daniel"]
["CP","6 ans",null,null,"primaire","-"]
["CE1","7 ans",null,"cycle 2",null,24]
["CE2","8 ans","1er degré",null,null,24]
["CM1","9 ans",null,null,null,25]
["CM2","10 ans",null,"cycle 3",null,25]
["6éme ","11 ans",null,null,null,26]
["5éme","12 ans",null,null,null,26]
["4éme","13 ans",null,"cycle 4","secondaire",26]
["3éme","14 ans","2ème degré",null,null,26]
["2nde","15 ans",null,null,null,28.5]
["1ére","16 ans",null,"cycle 5",null,29]
["Tle","17 ans",null,null,null,30]
[]
["Niveaux","classes"]
["6ème","6ème1"]
["5ème","6ème2"]
["4ème","6ème3"]
["3ème","5ème1"]
["2nde","5ème2"]
["1ère","5ème3"]
["Tle","4ème1"]
[null,"4ème2"]
[null,"4ème3"]
[null,"3ème1"]
[null,"3ème2"]
[null,"3ème3"]
[null,"2nde1"]
[null,"2nde2"]
[null,"2nde3"]
[null,"1ère1"]
[null,"1ère2"]
[null,"1ère3"]
[null,"Tle1"]
[null,"Tle2"]
[null,"Tle3"]

{"sheet":"eleves","index":1,"n_rows":272,"n_cols":14,"rows_kept":272,"cut":false,"hidden":false,"merged":[]}
["Matricule","Nom","Prénoms","Sexe","Date Naissance","Adresse","CP","Ville","Niveau","Classe","Tel Parents","Remarques",7]
[1,"ALFONSO","Guy","F","2007-01-09","97 rue des Tilleuls",2300,"La Tour-du-Meix","1ère","1ère1","06 34 33 19 07"]
[2,"ALIXANT","Dominique","M","2007-09-02","321 rue des Tilleuls",2310,"Ladoye-sur-Seille","1ère","1ère1",null,"Toujours en retard"]
[3,"ALPY","Philippe","M","2012-01-09","66 rue des Tilleuls",2320,"Graye-et-Charnay","6ème","6ème2"]
[4,"AMET","Laurent","M","2008-09-01","20 rue des Tilleuls",2330,"Gredisans","2nde","2nde1"]
[5,"ARTIGUES","Guy","M","2006-09-01","62 rue des Tilleuls",2340,"Grozon","Tle","Tle1"]
[7,"AUGER1","Christophe","M","2008-02-09","260 rue des Tilleuls",2350,"La Boissière","2nde","2nde1"]
[8,"AUGER2","Patrice","M","2011-09-01","331 rue des Tilleuls",2360,"La Bretenière","5ème","5ème2"]
[6,"AUGER3","Denis","M","2006-09-02","167 rue des Tilleuls",2370,"La Chailleuse","Tle","Tle2"]
[9,"AYMONIER","Jean-Jacques","F","2006-09-03","87 rue des Tilleuls",2380,"Molain","Tle","Tle2"]
[10,"BACHELEY","Daniel","F","2006-09-04","806 rue des Tilleuls",2390,"Mignovillard","Tle","Tle2"]
[11,"BACOT","Thierry","M","2012-09-02","131 rue des Tilleuls",2400,"Hautecour","6ème","6ème2"]
[14,"BAILLY1","Hélène","F","2008-09-03","182 rue des Tilleuls",2410,"Les Rousses","2nde","2nde1"]
[13,"BAILLY2","Michel","M","2010-09-01","52 rue des Tilleuls",2420,"Ivory","4ème","4ème2"]
[15,"BAILLY3","Claude","F","2012-09-03","359 rue des Tilleuls",2430,"Malange","6ème","6ème2"]
[12,"BAILLY4","Suzie","F","2006-09-05","49 rue des Tilleuls",2440,"Hauteroche","Tle","Tle2"]
[16,"BARBARIN","Gérald","M","2006-09-06","394 rue des Tilleuls",2450,"Graye-et-Charnay","Tle","Tle1"]
[17,"BATON","Emmanuel","M","2009-09-01","744 rue des Tilleuls",2460,"Genod","3ème","3ème2"]
[18,"BEAUPOIL","Christophe","M","2011-09-02","343 rue des Tilleuls",2470,"Les Deux-Fays","5ème","5ème2"]
[19,"BEJEAN1","Jérôme","M","2007-09-03","112 rue des Tilleuls",2480,"Ivrey","1ère","1ère3"]
[20,"BEJEAN2","Jacques","M","2009-09-02","829 rue des Tilleuls",2490,"Germigney","3ème","3ème2"]
[21,"BELLAT","Anne","F","2007-09-04","83 rue des Tilleuls",2500,"Jeurre","1ère","1ère1",null,null,null,"pe"]
[22,"BENIER-ROLLET","Stéphane","M","2010-09-02","80 rue des Tilleuls",2510,"Jouhe","4ème","4ème1"]
[23,"BERNARDIN",{"$f":"+C61","v":"Gwenaël"},"F","2012-09-04","5 rue des Tilleuls",2520,"La Barre","6ème","6ème1"]
[24,"BERODIER","Philippe","F","2007-09-05","187 rue des Tilleuls",2530,"Le Larderet","1ère","1ère1",null,null,null,"2022-08-13T16:57:19"]
[25,"BERTHELIER","Daniel","M","2006-09-07","45 rue des Tilleuls",2540,"La Boissière","Tle","Tle1"]
[26,"BERTHOZAT","Daniel","F","2012-09-05","306 rue des Tilleuls",2550,"Le Deschaux","6ème","6ème1"]
[27,"BERTOCCHI","Jean-Denis","F","2009-09-03","394 rue des Tilleuls",2560,"Foncine-le-Bas","3ème","3ème1"]
[28,"BESANCON","Olivier","M","2011-09-03","48 rue des Tilleuls",2570,"La Bretenière","5ème","5ème2"]
[29,"BESSARD","Stéphane","F","2009-09-04","3918 rue des Tilleuls",2580,"Gredisans","3ème","3ème1"]
[30,"BIGUEUR","Michel","M","2009-09-05","110 rue des Tilleuls",2590,"La Chailleuse","3ème","3ème2"]
[31,"BILLET","Joël","M","2007-09-06","492 rue des Tilleuls",2600,"Menétrux-en-Joux","1ère","1ère2"]
[32,"BLANCHET","Michel","M","2010-09-03","91 rue des Tilleuls",2610,"La Chapelle-sur-Furieuse","4ème","4ème2"]
[33,"BLANCHON","Philippe","M","2009-09-06","22 rue des Tilleuls",2620,"La Charme","3ème","3ème1"]
[34,"BOILLETOT","Bruno","M","2011-09-04","583 rue des Tilleuls",2630,"Le Frasnois","5ème","5ème2"]
[35,"BOISSARD","Roland","F","2007-09-07","248 rue des Tilleuls",2640,"Menotey","1ère","1ère3"]
[36,"BONDIER","Gérald","F","2011-09-05","8 rue des Tilleuls",2650,"Le Fied","5ème","5ème1"]
[37,"BONGAIN","Caroline","F","2006-09-08","20 rue des Tilleuls",2660,"Fraisans","Tle","Tle2"]
[38,"BONGINI","Jean-Noël","F","2006-09-09","519 rue des Tilleuls",2670,"Mièges","Tle","Tle1"]
[40,"BONIN1","Dominique","M","2007-09-08","108 rue des Tilleuls",2680,"La Chassagne","1ère","1ère1"]
[39,"BONIN2","Thierry","M","2008-09-04","66 rue des Tilleuls",2690,"Hautecour","2nde","2nde1"]
[41,"BONNET","Patrick","M","2006-09-10","130 rue des Tilleuls",2700,"Lect","Tle","Tle1"]
[42,"BONNIN","Jean-Paul","M","2010-09-04","78 rue des Tilleuls",2710,"La Châtelaine","4ème","4ème1"]
[43,"BONNOT","Jean-Yves","M","2010-09-05","132 rue des Tilleuls",2720,"La Chaumusse","4ème","4ème1"]
[44,"BOURGEOIS",{"$f":"+C97","v":"Evelyne"},"M","2006-09-11","4 rue des Tilleuls",2730,"La Chaux-du-Dombief","Tle","Tle2"]
[45,"BOUTTER","Jérôme","M","2007-09-09","197 rue des Tilleuls",2740,"Mathenay","1ère","1ère1",null,null,null,"pe"]
[46,"BRAUN","Eric","M","2012-09-06","27 rue des Tilleuls",2750,"La Chaux-en-Bresse","6ème","6ème1"]
[47,"BRENIAUX","Léa","F","2011-09-06","58 rue des Tilleuls",2760,"La Favière","5ème","5ème2"]
[48,"BROCHET","Michel","M","2007-09-10","70 rue des Tilleuls",2770,"La Ferté","1ère","1ère3"]
[49,"BRUCHON","Bernard","M","2010-09-06","14 rue des Tilleuls",2780,"La Frasnée","4ème","4ème2"]
[50,"BUCHOT","Chantal","F","2006-09-12","409 rue des Tilleuls",2790,"Écleux","Tle","Tle2"]
[51,"BUNOD1","Serge","F","2007-09-11","69 rue des Tilleuls",2800,"Gillois","1ère","1ère3"]
[52,"BUNOD2","Olivier","M","2012-09-07","187 rue des Tilleuls",2810,"Gizia","6ème","6ème2"]
[53,"BUNOD3","Daniel","F","2012-09-08","483 rue des Tilleuls",2820,"Grande-Rivière","6ème","6ème2"]
[54,"BURDEYRON","Eric","M","2012-09-09","246 rue des Tilleuls",2830,"Marigny","6ème","6ème2"]
[55,"BUYS","Gérard","M","2008-09-05","2586 rue des Tilleuls",2840,"Francheville","2nde","2nde1"]
[56,"CANNAZZARO","Yann","M","2012-09-10","130 rue des Tilleuls",2850,"La Latette","6ème","6ème1"]
[57,"CAPELLI","Gilles","M","2008-09-06","119 rue des Tilleuls",2860,"La Loye","2nde","2nde1"]
[58,"CASSABOIS","Denis","F","2007-09-12","774 rue des Tilleuls",2870,"La Chaux-en-Bresse","1ère","1ère3"]
[59,"CASSUS","Joël","M","2009-09-07","420 rue des Tilleuls",2880,"Le Louverot","3ème","3ème1"]
[60,"CHAMOUTON","Gwenaël","M","2009-09-08","98 rue des Tilleuls",2890,"La Marre","3ème","3ème2"]
[61,"CHANCENOTTE","Jean-Louis","F","2006-09-13","246 rue des Tilleuls",2900,"Marnézia","Tle","Tle2"]
[62,"CHANET MOCELLIN","Catherine","F","2006-09-14","386 rue des Tilleuls",2910,"Évans","Tle","Tle1"]
[63,"CHAPIN","Gérôme","M","2006-09-15","134 rue des Tilleuls",2920,"La Pesse","Tle","Tle1"]
[64,"CHAUVIN","David","F","2009-09-09","209 rue des Tilleuls",2930,"La Favière","3ème","3ème1"]
[65,"CHENU","Géraldine","F","2009-09-10","120 rue des Tilleuls",2940,"La Rixouse","3ème","3ème2"]
[66,"CHEVAUX","Claude","M","2006-09-16","24 rue des Tilleuls",2950,"La Tour-du-Meix","Tle","Tle2"]
[67,"CHOPIN","Philippe","F","2006-09-17","1167 rue des Tilleuls",2960,"La Loye","Tle","Tle2"]
[68,"CIOE",{"$f":"+C129","v":"Pierre"},"M","2007-09-13","7 rue des Tilleuls",2970,"La Vieille-Loye","1ère","1ère3"]
[70,"COLIN1","Georges","M","2008-09-07","96 rue des Tilleuls",2980,"Lac-des-Rouges-Truites","2nde","2nde1"]
[69,"COLIN2","Valérie","F","2011-09-07","84 rue des Tilleuls",2990,"Ladoye-sur-Seille","5ème","5ème1"]
[71,"COMPAGNON","Bernard","M","2012-09-11","712 rue des Tilleuls",3000,"Fay-en-Montagne","6ème","6ème2"]
[72,"CORDIER","Jean-François","F","2012-09-12","338 rue des Tilleuls",3010,"Lavans-lès-Saint-Claude","6ème","6ème1"]
[73,"COURVOISIER","Jean-Jacques","M","2006-09-18","46 rue des Tilleuls",3020,"Lajoux","Tle","Tle2"]
[74,"CROT","Laurent","F","2010-09-07","166 rue des Tilleuls",3030,"Le Pasquier","4ème","4ème2"]
[75,"DALLOZ","Christian","M","2007-09-14","274 rue des Tilleuls",3040,"Dramelay","1ère","1ère1"]
[76,"DAMNON","Xavier","M","2006-09-19","133 rue des Tilleuls",3050,"Lamoura","Tle","Tle1"]
[77,"DAUNE","Roland","F","2007-09-15","189 rue des Tilleuls",3060,"Grange-de-Vaivre","1ère","1ère2"]
[78,"DAVID1","Damien","M","2009-09-11","52 rue des Tilleuls",3070,"La Châtelaine","3ème","3ème1"]
[79,"DAVID2","Denis","M","2011-09-08","104 rue des Tilleuls",3080,"Largillay-Marsonnay","5ème","5ème1"]
[80,"DE BRISIS","Jean-Claude","F","2010-09-08","156 rue des Tilleuls",3090,"Foulenay","4ème","4ème2"]
[81,"DE MERONA","Christian","M","2006-09-20","666 rue des Tilleuls",3100,"Esserval-Tartre","Tle","Tle1"]
[82,"DÉCOTÉ","Hélène","F","2006-09-21","23 rue des Tilleuls",3110,"Larnaud","Tle","Tle1"]
[83,"DEGAY","Jean-Yves","M","2011-09-09","39 rue des Tilleuls",3120,"Larrivoire","5ème","5ème2"]
[84,"DEJEUX","Josette","F","2012-09-13","21 rue des Tilleuls",3130,"Lavans-lès-Dole","6ème","6ème2"]
[85,"DELBROUCQ","Gérard","M","2007-09-16","71 rue des Tilleuls",3140,"Lavans-lès-Saint-Claude","1ère","1ère2"]
[87,"DEMARCHI1","Sylvie","F","2012-09-14","86 rue des Tilleuls",3150,"Lavigny","6ème","6ème1"]
[86,"DEMARCHI2","Stéphane","M","2012-09-15","85 rue des Tilleuls",3160,"Lavans-lès-Saint-Claude","6ème","6ème2"]
[88,"DEPARIS-VINCENT","Romain","M","2007-09-17","563 rue des Tilleuls",3170,"Lemuy","1ère","1ère1"]
[89,"DEPIERRE","Romain","M","2008-09-08","9 rue des Tilleuls",3180,"Le Chateley","2nde","2nde1"]
[90,"DESARBRES","Jérôme","M","2007-09-18","30 rue des Tilleuls",3190,"Le Deschaux","1ère","1ère3"]
[91,"DEVAUX","Alain","F","2006-09-22","90 rue des Tilleuls",3200,"Larnaud","Tle","Tle2"]
[92,"DEVILLE","Hervé","M","2011-09-10","437 rue des Tilleuls",3210,"Les Moussières","5ème","5ème1"]
[93,"DIGONNAUX","Jean-Paul","M","2009-09-12","100 rue des Tilleuls",3220,"Le Fied","3ème","3ème1"]
[94,"DONZE","Claude","M","2007-09-19","117 rue des Tilleuls",3230,"Nancuise","1ère","1ère1"]
[95,"DOS SANTOS","Valérie","F","2008-09-09","618 rue des Tilleuls",3240,"Éclans-Nenon","2nde","2nde1"]
[96,"DROGREY","Evelyne","M","2007-09-20","212 rue des Tilleuls",3250,"Étival","1ère","1ère1",null,null,null,"pe"]
[97,"DRUOT","Isabelle","M","2007-09-21","199 rue des Tilleuls",3260,"Jouhe","1ère","1ère3"]
[98,"DUFOUR","Jean-Charles","M","2010-09-09","291 rue des Tilleuls",3270,"Entre-deux-Monts","4ème","4ème1"]
[99,"DUTHION","Denis","M","2009-09-13","63 rue des Tilleuls",3280,"La Marre","3ème","3ème1"]
[100,"ECOIFFIER","Jérôme","M","2011-09-11","61 rue des Tilleuls",3290,"Neublans-Abergement","5ème","5ème1"]
[101,"FANTINI","Bruno","M","2008-09-10","97 rue des Tilleuls",3300,"Neuvilley","2nde","2nde1"]
[102,"FATON","Pascal","M","2011-09-12","94 rue des Tilleuls",3310,"Dournon","5ème","5ème1"]
[103,"FAVIER","Franck","M","2006-09-23","69 rue des Tilleuls",3320,"Nevy-lès-Dole","Tle","Tle2"]
[104,"FAVORY","Stéphane","M","2011-09-13","87 rue des Tilleuls",25650,"Écrille","5ème","5ème1"]
[105,"FERNOUX-COUTENET","Bernard","F","2006-09-24","199 rue des Tilleuls",25660,"Marigna-sur-Valouse","Tle","Tle1"]
[106,"FERREUX","Philippe","M","2011-09-14","166 rue des Tilleuls",25670,"La Frasnée","5ème","5ème2"]
[107,"FLAMENT","Michel","F","2006-09-25","868 rue des Tilleuls",25680,"Hauteroche","Tle","Tle2"]
[108,"FLUCHON","Hervé","M","2011-09-15","18 rue des Tilleuls",25690,"Nevy-sur-Seille","5ème","5ème1"]
[109,"FRAICHARD","Pierre","M","2012-09-16","172 rue des Tilleuls",25700,"La Rixouse","6ème","6ème1"]
[110,"GAGNEUR","Grégory","M","2007-09-22","185 rue des Tilleuls",25710,"Foucherans","1ère","1ère2"]
[111,"GAGNEUX","Romain","M","2010-09-10","124 rue des Tilleuls",25720,"Ney","4ème","4ème1"]
[112,"GAHIER","Philippe","M","2011-09-16","249 rue des Tilleuls",25730,"Gevry","5ème","5ème2"]
[113,"GAILLARD","Nathalie","F","2012-09-17","63 rue des Tilleuls",25740,"Nogna","6ème","6ème1"]
[114,"GANET","Hervé","M","2007-09-23","329 rue des Tilleuls",25750,"Lac-des-Rouges-Truites","1ère","1ère2"]
[115,"GARNIER","Daniel","M","2007-09-24","545 rue des Tilleuls",25760,"Moissey","1ère","1ère3"]
[116,"GAUTHIER-PACOUD","Evelyne","F","2006-09-26","231 rue des Tilleuls",25770,"Étrepigney","Tle","Tle1"]
[117,"GAVAT","Bruno","F","2012-09-18","193 rue des Tilleuls",25780,"Doye","6ème","6ème1"]
[118,"GERMAIN","Arnaud","M","2007-09-25","115 rue des Tilleuls",25790,"Nozeroy","1ère","1ère2"]
[119,"GHELMA","Florent","F","2011-09-17","3630 rue des Tilleuls",25800,"La Chaumusse","5ème","5ème1"]
[120,"GIMARET","Patrice","M","2009-09-14","76 rue des Tilleuls",25810,"Offlanges","3ème","3ème1"]
[121,"GINDRE","Jérôme","M","2011-09-18","60 rue des Tilleuls",25820,"Onglières","5ème","5ème2"]
[122,"GIRARD","Jean-Marie","M","2009-09-15","96 rue des Tilleuls",25830,"La Chassagne","3ème","3ème1"]
[123,"GIRARDOT","Christian","F","2012-09-19","56 rue des Tilleuls",25840,"Le Chateley","6ème","6ème1"]
[124,"GLORIOD","Thomas","M","2006-09-27","88 rue des Tilleuls",25850,"Onoz","Tle","Tle1"]
[125,"GRANDVUINET","Jean-Marc","M","2011-09-19","774 rue des Tilleuls",25860,"La Chaux-du-Dombief","5ème","5ème2"]
[126,"GRESET","François","M","2009-09-16","121 rue des Tilleuls",25870,"Orchamps","3ème","3ème1"]
[127,"GRESSET-BOURGEOIS","William","M","2012-09-20","64 rue des Tilleuls",25880,"Orgelet","6ème","6ème2"]
[128,"GROS","Pierre","M","2010-09-11","37 rue des Tilleuls",25890,"Ougney","4ème","4ème2"]
[129,"GROSDIDIER1","Denise","F","2009-09-17","12 rue des Tilleuls",25900,"Ounans","3ème","3ème2"]
[130,"GROSDIDIER2","Pierre","M","2009-09-18","13 rue des Tilleuls",25910,"Our","3ème","3ème2"]
[131,"GROS-FUAND","Christian","F","2010-09-12","819 rue des Tilleuls",25920,"Le Vernois","4ème","4ème1"]
[132,"GRUET","Jean","F","2011-09-20","404 rue des Tilleuls",25930,"Larrivoire","5ème","5ème2"]
[133,"GUERRIN","Jean-Claude","M","2011-09-21","19 rue des Tilleuls",25940,"Oussières","5ème","5ème1"]
[134,"GUYON","Alain","M","2011-09-22","38 rue des Tilleuls",25950,"Pagney","5ème","5ème1"]
[135,"GUYOT1","Michelle","F","2007-09-26","116 rue des Tilleuls",25960,"Pagnoz","1ère","1ère2"]
[136,"GUYOT2","Jérôme","M","2009-09-19","176 rue des Tilleuls",25970,"Martigna","3ème","3ème1"]
[137,"HÄHLEN","Hervé","F","2010-09-13","192 rue des Tilleuls",25980,"Ivrey","4ème","4ème2"]
[281,"HARRY","fred","M","2011-09-23","15 rue du tilleul",85400,"SERTU","5ème","4ème2"]
[138,"HENARD","Annie","F","2009-09-20","11 rue des Tilleuls",85410,"Pannessières","3ème","3ème2"]
[139,"HENRY","Christian","M","2008-09-11","118 rue des Tilleuls",85420,"Parcey","2nde","2nde1"]
[140,"HERODY","Axelle","F","2011-09-24","82 rue des Tilleuls",85430,"Passenans","5ème","5ème2"]
[141,"HOTZ","Bernard","F","2011-09-25","14 rue des Tilleuls",85440,"Les Crozets","5ème","5ème1"]
[142,"HUGON","Antoine","M","2012-09-21","188 rue des Tilleuls",85450,"Gigny-sur-Suran","6ème","6ème1"]
[143,"HUGONNET","Pierrette","F","2008-09-12","31 rue des Tilleuls",85460,"Patornay","2nde","2nde1"]
[144,"HUSSON","Gérard","M","2006-09-28","89 rue des Tilleuls",85470,"Peintre","Tle","Tle2"]
[145,"IVANES","Marie-Christine","F","2009-09-21","17291 rue des Tilleuls",85480,"La Pesse","3ème","3ème1"]
[146,"JACQUEMIN","Josette","F","2006-09-29","234 rue des Tilleuls",85490,"Dompierre-sur-Mont","Tle","Tle2"]
[147,"JACQUOT","Josette","F","2010-09-14","156 rue des Tilleuls",85500,"Les Planches-près-Arbois","4ème","4ème1"]
[148,"JAILLET","Yves","F","2007-09-27","746 rue des Tilleuls",56320,"Fontenu","1ère","1ère3"]
[149,"JOUVENCEAU","Daniel","M","2009-09-22","99 rue des Tilleuls",56330,"Perrigny","3ème","3ème2"]
[150,"JUNIER","Jean-Yves","M","2010-09-15","171 rue des Tilleuls",56340,"Meussia","4ème","4ème1"]
[151,"KLINGUER","Roland","M","2009-09-23","35 rue des Tilleuls",56350,"Peseux","3ème","3ème2"]
[152,"LABOUROT","Jean-Noël","M","2012-09-22","116 rue des Tilleuls",56360,"Lamoura","6ème","6ème1"]
[154,"LACROIX1","Gilles","M","2007-09-28","842 rue des Tilleuls",56370,"Le Latet","1ère","1ère1"]
[153,"LACROIX2","Danielle","F","2012-09-23","42 rue des Tilleuls",37650,"Petit-Noir","6ème","6ème1"]
[155,"LAGALICE",{"$f":"+C219","v":"Christian"},"M","2007-09-29","8 rue des Tilleuls",37660,"Picarreau","1ère","1ère2"]
[156,"LAMBERGER","Catherine","F","2006-09-30","47 rue des Tilleuls",37670,"Pillemoine","Tle","Tle2"]
[157,"LAUBIER","Serge","M","2011-09-26","105 rue des Tilleuls",37680,"Lent","5ème","5ème2"]
[158,"LEPETZ","Joëlle","F","2007-09-30","1 rue des Tilleuls",37690,"Pimorin","1ère","1ère3"]
[159,"LESEUR","Catherine","F","2007-10-01","114 rue des Tilleuls",37700,"Plainoiseau","1ère","1ère3"]
[160,"LETONDOR","Olivier","F","2006-10-01","974 rue des Tilleuls",37710,"La Vieille-Loye","Tle","Tle1"]
[161,"LONG","Daniel","F","2009-09-24","286 rue des Tilleuls",37720,"Fontainebrux","3ème","3ème2"]
[162,"LOPEZ","Didier","M","2009-09-25","122 rue des Tilleuls",37730,"Plaisia","3ème","3ème1"]
[163,"MAINGUET","Agnès","M","2008-09-13","77 rue des Tilleuls",37740,"Gendrey","2nde","2nde1"]
[165,"MAIRE1","Laurent","F","2011-09-27","109 rue des Tilleuls",37750,"Grozon","5ème","5ème2"]
[164,"MAIRE2","Christian","M","2012-09-24","41 rue des Tilleuls",37760,"Plasne","6ème","6ème2"]
[166,"MAITRE","Laurent","M","2006-10-02","113 rue des Tilleuls",37770,"Plénise","Tle","Tle1"]
[167,"MARANO","Michel","M","2006-10-03","135 rue des Tilleuls",37780,"Plénisette","Tle","Tle1"]
[168,"MARCELIN","Jean-Noël","M","2011-09-28","40 rue des Tilleuls",37790,"Pleure","5ème","5ème2"]
[169,"MARCHAND","Pierre","F","2012-09-25","124 rue des Tilleuls",37800,"Les Chalesmes","6ème","6ème1"]
[170,"MARESCHAL","Daniel","F","2012-09-26","238 rue des Tilleuls",37810,"Doucier","6ème","6ème1"]
[171,"MARTIN1","Serge","M","2008-09-14","10 rue des Tilleuls",37820,"Plumont","2nde","2nde1"]
[172,"MARTIN2","Maurice","M","2010-09-16","422 rue des Tilleuls",37830,"Les Essards-Taignevaux","4ème","4ème1"]
[173,"MASSON","Claude","M","2007-10-02","94 rue des Tilleuls",37840,"Poids-de-Fiole","1ère","1ère2"]
[174,"MATHEZ","Micheline","M","2007-10-03","143 rue des Tilleuls",37850,"Lavans-lès-Saint-Claude","1ère","1ère3"]
[175,"MATHIEU","Olive","F","2012-09-27","43 rue des Tilleuls",37860,"Pointre","6ème","6ème2"]
[176,"MATHIOT","Joël","M","2009-09-26","34 rue des Tilleuls",37870,"Poligny","3ème","3ème1"]
[177,"MAUGAIN","Stéphane","M","2008-09-15","194 rue des Tilleuls",37880,"Lavans-lès-Dole","2nde","2nde1"]
[178,"MERCIER","Maurice","M","2012-09-28","107 rue des Tilleuls",37890,"Pont-de-Poitte","6ème","6ème1"]
[179,"MEUGIN","Berthe","F","2008-09-16","75 rue des Tilleuls",37900,"Pont-d'Héry","2nde","2nde1"]
[180,"MICHAUD1","Jean-Louis","M","2007-10-04","28 rue des Tilleuls",37910,"Pont-du-Navoy","1ère","1ère2"]
[182,"MICHAUD2","Pierre","M","2008-09-17","1101 rue des Tilleuls",37920,"Mesnois","2nde","2nde1"]
[181,"MICHAUD3","Christophe","M","2009-09-27","77 rue des Tilleuls",37930,"Port-Lesney","3ème","3ème2"]
[183,"MICHELET","Jean-Marie","F","2010-09-17","46 rue des Tilleuls",37940,"Moiron","4ème","4ème1"]
[184,"MILLIER","Jean-Charles","M","2007-10-05","51 rue des Tilleuls",37950,"Équevillon","1ère","1ère2"]
[185,"MONNERET LUQUET","Michaël","F","2012-09-29","91 rue des Tilleuls",37960,"La Chapelle-sur-Furieuse","6ème","6ème1"]
[187,"MONNET1","Sylvie","M","2009-09-28","454 rue des Tilleuls",37970,"Lajoux","3ème","3ème1"]
[186,"MONNET2","Jean-Luc","M","2011-09-29","128 rue des Tilleuls",37980,"Prémanon","5ème","5ème2"]
[188,"MONTUELLE","Antony","M","2007-10-06","51 rue des Tilleuls",37990,"Présilly","1ère","1ère3"]
[189,"MOREAU1","Patrick","M","2009-09-29","33 rue des Tilleuls",38000,"Pupillin","3ème","3ème2"]
[191,"MOREAU2","Rosie","F","2010-09-18","125 rue des Tilleuls",38010,"Quintigny","4ème","4ème1"]
[190,"MOREAU3","Etienne","M","2006-10-04","68 rue des Tilleuls",38020,"Rainans","Tle","Tle1"]
[193,"MOREL","Marc","M","2010-09-19","81 rue des Tilleuls",38030,"Ranchot","4ème","4ème1"]
[192,"MORELA","Jean-Paul","M","2012-09-30","65 rue des Tilleuls",38040,"Rans","6ème","6ème1",null,null,null,"pe"]
[195,"MOREL-FOURRIER","Laurent","F","2010-09-20","317 rue des Tilleuls",38050,"Les Planches-en-Montagne","4ème","4ème1"]
[194,"MORELO","Emmanuel","M","2006-10-05","829 rue des Tilleuls",38060,"Geraise","Tle","Tle1"]
[196,"MORISSEAU","Jean-Jacques","M","2007-10-07","92 rue des Tilleuls",38070,"Ravilloles","1ère","1ère2"]
[197,"MORLIER","Jean-Claude","F","2010-09-21","509 rue des Tilleuls",38080,"Les Nans","4ème","4ème1"]
[198,"MORNICO","Jeanne","F","2007-10-08","93 rue des Tilleuls",38090,"Recanoz","1ère","1ère3"]
[199,"MOUTENET","Hervé","F","2012-10-01","36 rue des Tilleuls",38100,"Jeurre","6ème","6ème1"]
[200,"NEILZ","Serge","M","2007-10-09","66 rue des Tilleuls",38110,"Gatey","1ère","1ère2"]
[274,"NEVERS","Stéphane","F","2011-09-30","65 rue des Tilleuls",69540,"Geruge","5ème","5ème1",null,"ouh là là"]
[202,"OLIVIER","Annie","M","2006-10-06","90 rue des Tilleuls",69520,"Les Arsures","Tle","Tle1"]
[205,"PAGET1","Michel","F","2009-09-30","1165 rue des Tilleuls",69500,"Fraroz","3ème","3ème1"]
[204,"PAGET2","Denise","F","2011-10-01","106 rue des Tilleuls",69480,"Reithouse","5ème","5ème2"]
[203,"PAGETI","Jean-Marie","M","2006-10-07","44 rue des Tilleuls",69460,"Relans","Tle","Tle1"]
[206,"PAILLOT","Jean-Noël","M","2007-10-10","72 rue des Tilleuls",69440,"Revigny","1ère","1ère3"]
[207,"PARÉ","Damien","M","2012-10-02","109 rue des Tilleuls",69420,"Rix-Trebief","6ème","6ème2"]
[208,"PAROISSE","Annie","F","2011-10-02","126 rue des Tilleuls",69400,"Rochefort-sur-Nenon","5ème","5ème2"]
[209,"PELLIN","Jean-François","M","2009-10-01","159 rue des Tilleuls",69380,"Lavigny","3ème","3ème1"]
[210,"PERES","Jean-Baptiste","M","2010-09-22","59 rue des Tilleuls",69360,"Rogna","4ème","4ème1"]
[211,"PERRARD","Christophe","M","2010-09-23","123 rue des Tilleuls",69340,"Romain","4ème","4ème2"]
[212,"PERRET","Hervé","M","2007-10-11","29 rue des Tilleuls",69320,"Romange","1ère","1ère1"]
[213,"PERRETTI","Chantal","M","2006-10-08","152 rue des Tilleuls",69300,"Le Vaudioux","Tle","Tle1"]
[214,"PERRIN","Thierry","M","2011-10-03","127 rue des Tilleuls",69280,"Rosay","5ème","5ème1"]
[215,"PERRON","Michel","M","2010-09-24","103 rue des Tilleuls",69260,"Rotalier","4ème","4ème2"]
[216,"PERTUS","François","F","2008-09-18","102 rue des Tilleuls",69240,"Grande-Rivière","2nde","2nde1"]
[217,"PESENTI","Christian","F","2007-10-12","806 rue des Tilleuls",69220,"Miéry","1ère","1ère3",null,null,null,"2022-08-13T11:00:18"]
[218,"PETETIN","Jacky","M","2010-09-25","101 rue des Tilleuls",69200,"Rothonay","4ème","4ème2"]
[219,"PETIT","Éric","M","2011-10-04","868 rue des Tilleuls",69180,"Ivory","5ème","5ème1"]
[220,"PETITJEAN","Fabienne","F","2010-09-26","102 rue des Tilleuls",69160,"Rouffange","4ème","4ème2"]
[274,"POTON","Jean","M","2011-10-05","15 rue du tilleul",25270,"AUTRON","5ème","5ème1"]
[221,"PUILLET","Patrick","M","2007-10-13","50 rue des Tilleuls",25280,"Ruffey-sur-Seille","1ère","1ère1"]
[222,"RAGOT","Emmanuelle","F","2006-10-09","90 rue des Tilleuls",25290,"Rye","Tle","Tle2"]
[223,"RASSAU","Jean-Louis","F","2008-09-19","211 rue des Tilleuls",25300,"La Latette","2nde","2nde1"]
[224,"RENAUD","Léa","F","2006-10-10","3 rue des Tilleuls",25310,"Saint-Amour","Tle","Tle1"]
[225,"REVOL","Laure","F","2008-09-20","53 rue des Tilleuls",25320,"Saint-Aubin","2nde","2nde1"]
[226,"RICHARD","Roger","M","2006-10-11","111 rue des Tilleuls",25330,"Saint-Baraing","Tle","Tle1"]
[227,"RIOTTE","Sylvie","F","2012-10-03","129 rue des Tilleuls",25340,"Saint-Cyr-Montmalin","6ème","6ème2"]
[228,"ROBERT","Bernard","M","2006-10-12","26 rue des Tilleuls",25350,"Saint-Didier","Tle","Tle1"]
[229,"ROUSSET","Dominique","F","2011-10-06","17 rue des Tilleuls",25360,"Sainte-Agnès","5ème","5ème2"]
[230,"ROUSSEY","Laure","F","2009-10-02","54 rue des Tilleuls",25370,"Saint-Germain-en-Montagne","3ème","3ème2"]
[231,"ROY","Patrick","M","2009-10-03","106 rue des Tilleuls",25380,"La Barre","3ème","3ème1"]
[232,"ROY","Evelyne","M","2009-10-04","5350 rue des Tilleuls",25390,"Mesnay","3ème","3ème2"]
[234,"ROZEK","Maurice","M","2010-09-27","16 rue des Tilleuls",25400,"Saint-Hymetière-sur-Valouse","4ème","4ème1"]
[233,"ROZEK","Christophe","M","2010-09-28","15 rue des Tilleuls",25410,"Saint-Hymetière-sur-Valouse","4ème","4ème2"]
[235,"RUDE","Jacky","M","2006-10-13","67 rue des Tilleuls",25420,"Saint-Hymetière-sur-Valouse","Tle","Tle2"]
[237,"SAILLARD","Michel","M","2008-09-21","74 rue des Tilleuls",25440,"Saint-Lamain","2nde","2nde1"]
[238,"SANCEY","Dominique","F","2007-10-14","119 rue des Tilleuls",25450,"Les Hays","1ère","1ère1"]
[239,"SAVOYE","Denis","F","2010-09-29","164 rue des Tilleuls",25460,"La Charme","4ème","4ème2"]
[240,"SERRETTE","Alain","M","2006-10-14","927 rue des Tilleuls",25470,"Foncine-le-Haut","Tle","Tle2"]
[241,"SERTYU","Martine","F","2006-10-15","52 rue des Tilleuls",25480,"Gevingey","Tle","Tle1"]
[242,"SOLDAVINI","Jean-Claude","M","2006-10-16","25 rue des Tilleuls",25490,"Saint-Laurent-en-Grandvaux","Tle","Tle2"]
[243,"STOLZ","Hervé","F","2011-10-07","246 rue des Tilleuls",25500,"Marnoz","5ème","5ème2"]
[244,"TARTAVEZ","Lucie","F","2009-10-05","55 rue des Tilleuls",25510,"Saint-Lothain","3ème","3ème1"]
[245,"THABARD","Bernard","F","2008-09-22","563 rue des Tilleuls",25520,"La Ferté","2nde","2nde1"]
[246,"THERY","Denise","M","2007-10-15","501 rue des Tilleuls",25530,"Les Bouchoux","1ère","1ère2"]
[247,"THOMAS","Philippe","M","2007-10-16","132 rue des Tilleuls",25540,"Les Repôts","1ère","1ère2"]
[249,"TISSOT1","Éric","M","2012-10-05","771 rue des Tilleuls",25550,"Falletans","6ème","6ème2"]
[248,"TISSOT2","Patrick","M","2006-10-17","90 rue des Tilleuls",25560,"Menétru-le-Vignoble","Tle","Tle1"]
[250,"TONIUTTI","Anne","F","2009-10-06","56 rue des Tilleuls",25570,"Saint-Loup","3ème","3ème1"]
[251,"TONNAIRE","Alexandre","M","2008-09-23","32 rue des Tilleuls",25580,"Saint-Maur","2nde","2nde1"]
[252,"TORCK","Claude","M","2007-10-17","95 rue des Tilleuls",25590,"Saint-Maurice-Crillat","1ère","1ère3"]
[253,"TRIBOULET","Jean-Claude","M","2009-10-07","254 rue des Tilleuls",25600,"Mantry","3ème","3ème2"]
[254,"TRIBUT","Paulette","F","2010-09-30","79 rue des Tilleuls",25610,"Saint-Pierre","4ème","4ème1"]
[255,"TRONCHET","Alain","F","2007-10-18","89 rue des Tilleuls",25620,"Messia-sur-Sorne","1ère","1ère1"]
[256,"TRONCIN","Bruno","F","2010-10-01","185 rue des Tilleuls",25630,"Fort-du-Plasne","4ème","4ème2"]
[257,"TROSSAT","Claude","M","2006-10-18","207 rue des Tilleuls",25640,"Largillay-Marsonnay","Tle","Tle2"]
[258,"VALOT","Christian","M","2012-10-06","105 rue des Tilleuls",25650,"Saint-Thiébaud","6ème","6ème2"]
[259,"VAUCHER","Roland","F","2009-10-08","2292 rue des Tilleuls",25660,"Mérona","3ème","3ème1"]
[260,"VERNE","Christine","F","2007-10-19","73 rue des Tilleuls",56900,"Saizenay","1ère","3ème2",null,"ras ras"]
[261,"VESPA","Olivier","M","2007-10-20","806 rue des Tilleuls",56910,"Moirans-en-Montagne","1ère","1ère2"]
[262,"VIAL","Evelyne","F","2010-10-02","36 rue des Tilleuls",56920,"Salans","4ème","4ème2"]
[263,"VIENNET","Josette","F","2007-10-21","2 rue des Tilleuls",56930,"Saligney","1ère","1ère2"]
[264,"VILLALONGA","Fabrice","M","2010-10-03","57 rue des Tilleuls",56940,"Salins-les-Bains","4ème","4ème2"]
[265,"VIVERGE","Franck","F","2009-10-09","374 rue des Tilleuls",56950,"Frébuans","3ème","4ème2"]
[266,"VOISIN","Stéphanie","M","2006-10-19","297 rue des Tilleuls",56960,"Frasne-les-Meulières","Tle","Tle1"]
[267,"VOLPOET","Joel","M","2008-09-24","6 rue des Tilleuls",56970,"Sampans","2nde","2nde1"]
[268,"VUILLAUME","Louis","M","2006-10-20","87 rue des Tilleuls",56980,"Santans","Tle","Tle1",null,null,null,"2022-08-13T01:19:26"]
[269,"VUITTON","Alexandre","M","2011-10-08","3036 rue des Tilleuls",56990,"Maynal","5ème","5ème2"]
[270,"YONNET","Sandrine","F","2006-10-21","230 rue des Tilleuls",57000,"Frontenay","Tle","Tle2"]

{"sheet":"profs","index":2,"n_rows":29,"n_cols":16,"rows_kept":29,"cut":false,"hidden":false,"merged":[]}
["Matricule","Nom","Prénoms","Sexe","Date Naissance","Adresse","CP","Ville","Matière 1","Durée1","Matière 2","Durée 2","Matière 3","Durée 3","Nom prénom","Empl Tps P"]
[11,"ARNAUD","Yann","M","1983-07-11","338 rue des Tilleuls",14560,"Lavans-lès-Saint-Claude","Arts Plastiques",8,null,null,null,null,"ARNAUD Yann",8]
[24,"BAILLY","Thierry","M","1961-12-05","71 rue des Tilleuls",25690,"Lavans-lès-Saint-Claude","LV2",20,null,null,null,null,"BAILLY Thierry",20]
[20,"BERTHELIER","Josette","F","1951-12-05","666 rue des Tilleuls",41260,"Esserval-Tartre","Français",24,null,null,null,null,"BERTHELIER Josette",13]
[23,"BESANCON","Laurence","F","02/19/1970","21 rue des Tilleuls",41250,"Lavans-lès-Dole",null,null,null,null,null,null,"BESANCON Laurence",0]
[3,"BOISSON","Jean","F","20/02/1955","209 rue des Tilleuls",65930,"La Favière","Mathématiques",32,null,null,null,null,"BOISSON Jean",32]
[4,"BONDIER","Albert","M","1975-11-10","1167 rue des Tilleuls",65940,"La Loye",null,null,null,null,null,null,"BONDIER Albert",0]
[9,"BONTEMPS","Léon","M","1952-10-06","96 rue des Tilleuls",56200,"Lac-des-Rouges-Truites",null,null,null,null,null,null,"BONTEMPS Léon",0]
[8,"BOURDY","William","M","1958-01-02","84 rue des Tilleuls",32690,"Ladoye-sur-Seille","Histoire Géographie",9,null,null,null,null,"BOURDY William",9]
[1,"BRULEBOIS","Thomas","M","16/07/1988","26 rue du tilleul",26980,"DERTUP","Composition Française",4,null,null,null,null,"BRULEBOIS Thomas",4]
[21,"COURVOISIER","Gérald","M","1968-04-21","23 rue des Tilleuls",67230,"Larnaud","Conduite",14,null,null,null,null,"COURVOISIER Gérald",14]
[2,"DUFOUR","Valérie","F","1949-10-07","134 rue des Tilleuls",68210,"La Pesse","Orthographe Grammaire",16,null,null,null,null,"DUFOUR Valérie",16]
[27,"FERTUO","Jean","M","1949-10-08","135 rue des Tilleuls",27890,"OURTE",null,null,null,null,null,null,"FERTUO Jean",0]
[6,"HOFFMANN","Yannick","M","17/01/1970","46 rue des Tilleuls",23650,"Lajoux","Anglais",24,null,null,null,null,"HOFFMANN Yannick",24]
[12,"JANIER","Valérie","F","15/04/1968","120 rue des Tilleuls",68210,"La Rixouse",null,null,null,null,null,null,"JANIER Valérie",0]
[22,"LAMBERGER","Stéphane","M","1971-11-07","39 rue des Tilleuls",24560,"Larrivoire","Physique Chimie",14,null,null,null,null,"LAMBERGER Stéphane",14]
[14,"LEGRAND","Yvan","M","1962-11-06","274 rue des Tilleuls",47560,"Dramelay","Mathématiques",4,null,null,null,null,"LEGRAND Yvan",4]
[17,"MAIRE","Yves","M","24/03/1952","52 rue des Tilleuls",62120,"La Châtelaine","Anglais",16,null,null,null,null,"MAIRE Yves",16]
[7,"MAIROT","Virginie","F","1964-04-11","7 rue des Tilleuls",78210,"La Vieille-Loye","SVT",20,null,null,null,null,"MAIROT Virginie",20]
[26,"MANNIER","Gilbert","M","28/06/1979","86 rue des Tilleuls",25690,"Lavigny","Anglais",16,null,null,null,null,"MANNIER Gilbert",16]
[18,"MATHIEU","Daniel","M","1971-12-06","104 rue des Tilleuls",67510,"Largillay-Marsonnay","Mathématiques",20,null,null,null,null,"MATHIEU Daniel",20]
[5,"MONNERET","Véronique","F","15/10/1950","24 rue des Tilleuls",98450,"La Tour-du-Meix","EPS",14,null,null,null,null,"MONNERET Véronique",14]
[15,"MONNIER","Bernard","M","20/01/1949","133 rue des Tilleuls",54890,"Lamoura","EDHC",8,null,null,null,null,"MONNIER Bernard",8]
[16,"MULAT","Léa","F","29/11/1953","189 rue des Tilleuls",91260,"Grange-de-Vaivre",null,null,null,null,null,null,"MULAT Léa",0]
[13,"ONCLE","sophie","F","1966-11-02","166 rue des Tilleuls",69320,"Le Pasquier","EPS",14,null,null,null,null,"ONCLE sophie",14]
[19,"PAGET","François","M","1975-08-10","156 rue des Tilleuls",64780,"Foulenay","Histoire Géographie",18,null,null,null,null,"PAGET François",18]
[28,"POUBO","sam","M","1987-09-07","25 rue du tilleul",25620,"DEUPO","Histoire Géographie",15,null,null,null,null,"POUBO sam",15]
[25,"PUILLET","Michel","M","21/11/1960","85 rue des Tilleuls",63210,"Lavans-lès-Saint-Claude","SVT",8,null,null,null,null,"PUILLET Michel",8]
[10,"SENOT","Xavier","M","17/11/1946","712 rue des Tilleuls",64250,"Fay-en-Montagne","Expression Ecrite",16,"Composition Française",4,"Philosophie",10,"SENOT Xavier",29]

{"sheet":"notes","index":3,"n_rows":302,"n_cols":20,"rows_kept":302,"cut":false,"hidden":false,"merged":[]}
["Matricule","NOM","Prénoms","Sexe","Classe","Matière","D1","D2","D3","D4","D5","D6","D7","D8","D9","D10","D11","D12","moy","Appréciation"]
[36,"BONDIER","Gérald","F","5ème1","Histoire Géographie",null,9,15,11,null,null,null,null,null,null,null,null,11.666666666666666,"travailleur"]
[69,"COLIN","Valérie","F","5ème1","Histoire Géographie",12,8,11,10,12,9,10,null,null,null,null,null,10.333333333333334,"bavarde"]
[79,"DAVID","Denis","M","5ème1","Histoire Géographie",5,9,10,2,7,6,7,null,null,null,null,null,6.5,"touriste"]
[92,"DEVILLE","Hervé","M","5ème1","Histoire Géographie"]
[100,"ECOIFFIER","Jérôme","M","5ème1","Histoire Géographie"]
[102,"FATON","Pascal","M","5ème1","Histoire Géographie"]
[104,"FAVORY","Stéphane","M","5ème1","Histoire Géographie"]
[108,"FLUCHON","Hervé","M","5ème1","Histoire Géographie"]
[119,"GHELMA","Florent","F","5ème1","Histoire Géographie"]
[133,"GUERRIN","Jean-Claude","M","5ème1","Histoire Géographie"]
[134,"GUYON","Alain","M","5ème1","Histoire Géographie"]
[141,"HOTZ","Bernard","F","5ème1","Histoire Géographie"]
[201,"NEVERS","Stéphane","F","5ème1","Histoire Géographie"]
[274,"NEVERS","Stéphane","F","5ème1","Histoire Géographie"]
[214,"PERRIN","Thierry","M","5ème1","Histoire Géographie"]
[219,"PETIT","Éric","M","5ème1","Histoire Géographie"]
[274,"POTON","Jean","M","5ème1","Histoire Géographie",8.5,8.5,11.6,8.1999999999999993,12,9,null,null,null,null,null,null,9.8000000000000007]
[null,"Moyenne","Classe",null,"5ème1","Histoire Géographie",8.5,8.6,11.9,7.8,10.3,9,null,null,null,null,null,null,9.6999999999999993]
[8,"AUGER","Patrice","M","5ème2","Mathématiques"]
[18,"BEAUPOIL","Christophe","M","5ème2","Mathématiques",6,8,9,8,10,null,null,null,null,null,null,null,8.1999999999999993]
[28,"BESANCON","Olivier","M","5ème2","Mathématiques",10,9,11,null,null,null,null,null,null,null,null,null,10]
[34,"BOILLETOT","Bruno","M","5ème2","Mathématiques",12,null,null,null,null,null,null,null,null,null,null,null,12,"qzddc"]
[47,"BRENIAUX","Léa","F","5ème2","Mathématiques",11,12,null,null,null,null,null,null,null,null,null,null,11.5]
[83,"DEGAY","Jean-Yves","M","5ème2","Mathématiques"]
[106,"FERREUX","Philippe","M","5ème2","Mathématiques"]
[112,"GAHIER","Philippe","M","5ème2","Mathématiques"]
[121,"GINDRE","Jérôme","M","5ème2","Mathématiques"]
[125,"GRANDVUINET","Jean-Marc","M","5ème2","Mathématiques"]
[132,"GRUET","Jean","F","5ème2","Mathématiques"]
[140,"HERODY","Axelle","F","5ème2","Mathématiques"]
[157,"LAUBIER","Serge","M","5ème2","Mathématiques"]
[165,"MAIRE","Laurent","F","5ème2","Mathématiques"]
[168,"MARCELIN","Jean-Noël","M","5ème2","Mathématiques"]
[186,"MONNET","Jean-Luc","M","5ème2","Mathématiques"]
[204,"PAGET","Denise","F","5ème2","Mathématiques"]
[208,"PAROISSE","Annie","F","5ème2","Mathématiques"]
[229,"ROUSSET","Dominique","F","5ème2","Mathématiques"]
[243,"STOLZ","Hervé","F","5ème2","Mathématiques"]
[269,"VUITTON","Alexandre","M","5ème2","Mathématiques",12,null,null,null,null,null,null,null,null,null,null,null,12]
[null,"Moyenne","Classe",null,"5ème2","Mathématiques",10.5,10.7,9,8,10,null,null,null,null,null,null,null,11.1]
[13,"BAILLY","Michel","M","4ème2","EDHC"]
[32,"BLANCHET","Michel","M","4ème2","EDHC"]
[49,"BRUCHON","Bernard","M","4ème2","EDHC"]
[74,"CROT","Laurent","F","4ème2","EDHC"]
[80,"DE BRISIS","Jean-Claude","F","4ème2","EDHC"]
[128,"GROS","Pierre","M","4ème2","EDHC"]
[137,"HÄHLEN","Hervé","F","4ème2","EDHC"]
[211,"PERRARD","Christophe","M","4ème2","EDHC"]
[215,"PERRON","Michel","M","4ème2","EDHC"]
[218,"PETETIN","Jacky","M","4ème2","EDHC"]
[220,"PETITJEAN","Fabienne","F","4ème2","EDHC"]
[233,"ROZEK","Christophe","M","4ème2","EDHC"]
[239,"SAVOYE","Denis","F","4ème2","EDHC"]
[256,"TRONCIN","Bruno","F","4ème2","EDHC"]
[262,"VIAL","Evelyne","F","4ème2","EDHC"]
[264,"VILLALONGA","Fabrice","M","4ème2","EDHC"]
[265,"VIVERGE","Franck","F","4ème2","EDHC"]
[null,"Moyenne","Classe",null,"4ème2","EDHC"]
[23,"BERNARDIN","Gwenaël","F","6ème1","Composition Française"]
[26,"BERTHOZAT","Daniel","F","6ème1","Composition Française"]
[46,"BRAUN","Eric","M","6ème1","Composition Française"]
[56,"CANNAZZARO","Yann","M","6ème1","Composition Française"]
[72,"CORDIER","Jean-François","F","6ème1","Composition Française"]
[87,"DEMARCHI","Sylvie","F","6ème1","Composition Française"]
[109,"FRAICHARD","Pierre","M","6ème1","Composition Française"]
[113,"GAILLARD","Nathalie","F","6ème1","Composition Française"]
[117,"GAVAT","Bruno","F","6ème1","Composition Française"]
[123,"GIRARDOT","Christian","F","6ème1","Composition Française"]
[142,"HUGON","Antoine","M","6ème1","Composition Française"]
[152,"LABOUROT","Jean-Noël","M","6ème1","Composition Française"]
[153,"LACROIX","Danielle","F","6ème1","Composition Française"]
[169,"MARCHAND","Pierre","F","6ème1","Composition Française"]
[170,"MARESCHAL","Daniel","F","6ème1","Composition Française"]
[178,"MERCIER","Maurice","M","6ème1","Composition Française"]
[185,"MONNERET LUQUET","Michaël","F","6ème1","Composition Française"]
[192,"MOREL","Jean-Paul","M","6ème1","Composition Française"]
[199,"MOUTENET","Hervé","F","6ème1","Composition Française"]
[236,"SAGET","Monique","F","6ème1","Composition Française"]
[null,"Moyenne","Classe",null,"6ème1","Composition Française"]
[23,"BERNARDIN","Gwenaël","F","6ème1","Anglais"]
[26,"BERTHOZAT","Daniel","F","6ème1","Anglais"]
[46,"BRAUN","Eric","M","6ème1","Anglais"]
[56,"CANNAZZARO","Yann","M","6ème1","Anglais"]
[72,"CORDIER","Jean-François","F","6ème1","Anglais"]
[87,"DEMARCHI","Sylvie","F","6ème1","Anglais"]
[109,"FRAICHARD","Pierre","M","6ème1","Anglais"]
[113,"GAILLARD","Nathalie","F","6ème1","Anglais"]
[117,"GAVAT","Bruno","F","6ème1","Anglais"]
[123,"GIRARDOT","Christian","F","6ème1","Anglais"]
[142,"HUGON","Antoine","M","6ème1","Anglais"]
[152,"LABOUROT","Jean-Noël","M","6ème1","Anglais"]
[153,"LACROIX","Danielle","F","6ème1","Anglais"]
[169,"MARCHAND","Pierre","F","6ème1","Anglais"]
[170,"MARESCHAL","Daniel","F","6ème1","Anglais"]
[178,"MERCIER","Maurice","M","6ème1","Anglais"]
[185,"MONNERET LUQUET","Michaël","F","6ème1","Anglais"]
[192,"MOREL","Jean-Paul","M","6ème1","Anglais"]
[199,"MOUTENET","Hervé","F","6ème1","Anglais"]
[236,"SAGET","Monique","F","6ème1","Anglais"]
[null,"Moyenne","Classe",null,"6ème1","Anglais"]
[3,"ALPY","Philippe","M","6ème2","Composition Française"]
[11,"BACOT","Thierry","M","6ème2","Composition Française"]
[15,"BAILLY","Claude","F","6ème2","Composition Française"]
[52,"BUNOD","Olivier","M","6ème2","Composition Française"]
[53,"BUNOD","Daniel","F","6ème2","Composition Française"]
[54,"BURDEYRON","Eric","M","6ème2","Composition Française"]
[71,"COMPAGNON","Bernard","M","6ème2","Composition Française"]
[84,"DEJEUX","Josette","F","6ème2","Composition Française"]
[86,"DEMARCHI","Stéphane","M","6ème2","Composition Française"]
[127,"GRESSET-BOURGEOIS","William","M","6ème2","Composition Française"]
[164,"MAIRE","Christian","M","6ème2","Composition Française"]
[175,"MATHIEU","Olive","F","6ème2","Composition Française"]
[207,"PARÉ","Damien","M","6ème2","Composition Française"]
[227,"RIOTTE","Sylvie","F","6ème2","Composition Française"]
[249,"TISSOT","Éric","M","6ème2","Composition Française"]
[258,"VALOT","Christian","M","6ème2","Composition Française"]
[null,"Moyenne","Classe",null,"6ème2","Composition Française"]
[23,"BERNARDIN","Gwenaël","F","6ème1","Expression Ecrite"]
[26,"BERTHOZAT","Daniel","F","6ème1","Expression Ecrite"]
[46,"BRAUN","Eric","M","6ème1","Expression Ecrite"]
[56,"CANNAZZARO","Yann","M","6ème1","Expression Ecrite"]
[72,"CORDIER","Jean-François","F","6ème1","Expression Ecrite"]
[87,"DEMARCHI","Sylvie","F","6ème1","Expression Ecrite"]
[109,"FRAICHARD","Pierre","M","6ème1","Expression Ecrite"]
[113,"GAILLARD","Nathalie","F","6ème1","Expression Ecrite"]
[117,"GAVAT","Bruno","F","6ème1","Expression Ecrite"]
[123,"GIRARDOT","Christian","F","6ème1","Expression Ecrite"]
[142,"HUGON","Antoine","M","6ème1","Expression Ecrite"]
[152,"LABOUROT","Jean-Noël","M","6ème1","Expression Ecrite"]
[153,"LACROIX","Danielle","F","6ème1","Expression Ecrite"]
[169,"MARCHAND","Pierre","F","6ème1","Expression Ecrite"]
[170,"MARESCHAL","Daniel","F","6ème1","Expression Ecrite"]
[178,"MERCIER","Maurice","M","6ème1","Expression Ecrite"]
[185,"MONNERET LUQUET","Michaël","F","6ème1","Expression Ecrite"]
[192,"MOREL","Jean-Paul","M","6ème1","Expression Ecrite"]
[199,"MOUTENET","Hervé","F","6ème1","Expression Ecrite"]
[236,"SAGET","Monique","F","6ème1","Expression Ecrite"]
[null,"Moyenne","Classe",null,"6ème1","Expression Ecrite"]
[23,"BERNARDIN","Gwenaël","F","6ème1","Histoire Géographie"]
[26,"BERTHOZAT","Daniel","F","6ème1","Histoire Géographie"]
[46,"BRAUN","Eric","M","6ème1","Histoire Géographie"]
[56,"CANNAZZARO","Yann","M","6ème1","Histoire Géographie"]
[72,"CORDIER","Jean-François","F","6ème1","Histoire Géographie"]
[87,"DEMARCHI1","Sylvie","F","6ème1","Histoire Géographie"]
[109,"FRAICHARD","Pierre","M","6ème1","Histoire Géographie"]
[113,"GAILLARD","Nathalie","F","6ème1","Histoire Géographie"]
[117,"GAVAT","Bruno","F","6ème1","Histoire Géographie"]
[123,"GIRARDOT","Christian","F","6ème1","Histoire Géographie"]
[142,"HUGON","Antoine","M","6ème1","Histoire Géographie"]
[152,"LABOUROT","Jean-Noël","M","6ème1","Histoire Géographie"]
[153,"LACROIX2","Danielle","F","6ème1","Histoire Géographie"]
[169,"MARCHAND","Pierre","F","6ème1","Histoire Géographie"]
[170,"MARESCHAL","Daniel","F","6ème1","Histoire Géographie"]
[178,"MERCIER","Maurice","M","6ème1","Histoire Géographie"]
[185,"MONNERET LUQUET","Michaël","F","6ème1","Histoire Géographie"]
[192,"MORELA","Jean-Paul","M","6ème1","Histoire Géographie"]
[199,"MOUTENET","Hervé","F","6ème1","Histoire Géographie"]
[236,"SAGET","Monique","F","6ème1","Histoire Géographie"]
[null,"Moyenne","Classe",null,"6ème1","Histoire Géographie"]
[36,"BONDIER","Gérald","F","5ème1","Expression Ecrite"]
[69,"COLIN2","Valérie","F","5ème1","Expression Ecrite"]
[79,"DAVID2","Denis","M","5ème1","Expression Ecrite"]
[92,"DEVILLE","Hervé","M","5ème1","Expression Ecrite"]
[100,"ECOIFFIER","Jérôme","M","5ème1","Expression Ecrite"]
[102,"FATON","Pascal","M","5ème1","Expression Ecrite"]
[104,"FAVORY","Stéphane","M","5ème1","Expression Ecrite"]
[108,"FLUCHON","Hervé","M","5ème1","Expression Ecrite"]
[119,"GHELMA","Florent","F","5ème1","Expression Ecrite"]
[133,"GUERRIN","Jean-Claude","M","5ème1","Expression Ecrite"]
[134,"GUYON","Alain","M","5ème1","Expression Ecrite"]
[141,"HOTZ","Bernard","F","5ème1","Expression Ecrite"]
[274,"NEVERS","Stéphane","F","5ème1","Expression Ecrite"]
[214,"PERRIN","Thierry","M","5ème1","Expression Ecrite"]
[219,"PETIT","Éric","M","5ème1","Expression Ecrite"]
[274,"POTON","Jean","M","5ème1","Expression Ecrite"]
[null,"Moyenne","Classe",null,"5ème1","Expression Ecrite"]
[13,"BAILLY2","Michel","M","4ème2","Expression Ecrite"]
[32,"BLANCHET","Michel","M","4ème2","Expression Ecrite"]
[49,"BRUCHON","Bernard","M","4ème2","Expression Ecrite"]
[74,"CROT","Laurent","F","4ème2","Expression Ecrite"]
[80,"DE BRISIS","Jean-Claude","F","4ème2","Expression Ecrite"]
[128,"GROS","Pierre","M","4ème2","Expression Ecrite"]
[137,"HÄHLEN","Hervé","F","4ème2","Expression Ecrite"]
[281,"HARRY","fred","M","4ème2","Expression Ecrite"]
[211,"PERRARD","Christophe","M","4ème2","Expression Ecrite"]
[215,"PERRON","Michel","M","4ème2","Expression Ecrite"]
[218,"PETETIN","Jacky","M","4ème2","Expression Ecrite"]
[220,"PETITJEAN","Fabienne","F","4ème2","Expression Ecrite"]
[233,"ROZEK","Christophe","M","4ème2","Expression Ecrite"]
[239,"SAVOYE","Denis","F","4ème2","Expression Ecrite"]
[256,"TRONCIN","Bruno","F","4ème2","Expression Ecrite"]
[262,"VIAL","Evelyne","F","4ème2","Expression Ecrite"]
[264,"VILLALONGA","Fabrice","M","4ème2","Expression Ecrite"]
[265,"VIVERGE","Franck","F","4ème2","Expression Ecrite"]
[null,"Moyenne","Classe",null,"4ème2","Expression Ecrite"]
[36,"BONDIER","Gérald","F","5ème1","Composition Française"]
[69,"COLIN2","Valérie","F","5ème1","Composition Française"]
[79,"DAVID2","Denis","M","5ème1","Composition Française"]
[92,"DEVILLE","Hervé","M","5ème1","Composition Française"]
[100,"ECOIFFIER","Jérôme","M","5ème1","Composition Française"]
[102,"FATON","Pascal","M","5ème1","Composition Française"]
[104,"FAVORY","Stéphane","M","5ème1","Composition Française"]
[108,"FLUCHON","Hervé","M","5ème1","Composition Française"]
[119,"GHELMA","Florent","F","5ème1","Composition Française"]
[133,"GUERRIN","Jean-Claude","M","5ème1","Composition Française"]
[134,"GUYON","Alain","M","5ème1","Composition Française"]
[141,"HOTZ","Bernard","F","5ème1","Composition Française"]
[274,"NEVERS","Stéphane","F","5ème1","Composition Française"]
[214,"PERRIN","Thierry","M","5ème1","Composition Française"]
[219,"PETIT","Éric","M","5ème1","Composition Française"]
[274,"POTON","Jean","M","5ème1","Composition Française"]
[null,"Moyenne","Classe",null,"5ème1","Composition Française"]
[8,"AUGER2","Patrice","M","5ème2","Composition Française"]
[18,"BEAUPOIL","Christophe","M","5ème2","Composition Française",6,8,9,8,10,null,null,null,null,null,null,null,8.1999999999999993]
[28,"BESANCON","Olivier","M","5ème2","Composition Française",10,9,11,null,null,null,null,null,null,null,null,null,10]
[34,"BOILLETOT","Bruno","M","5ème2","Composition Française"]
[47,"BRENIAUX","Léa","F","5ème2","Composition Française"]
[83,"DEGAY","Jean-Yves","M","5ème2","Composition Française"]
[106,"FERREUX","Philippe","M","5ème2","Composition Française"]
[112,"GAHIER","Philippe","M","5ème2","Composition Française"]
[121,"GINDRE","Jérôme","M","5ème2","Composition Française"]
[125,"GRANDVUINET","Jean-Marc","M","5ème2","Composition Française"]
[132,"GRUET","Jean","F","5ème2","Composition Française"]
[140,"HERODY","Axelle","F","5ème2","Composition Française"]
[157,"LAUBIER","Serge","M","5ème2","Composition Française"]
[165,"MAIRE1","Laurent","F","5ème2","Composition Française"]
[168,"MARCELIN","Jean-Noël","M","5ème2","Composition Française"]
[186,"MONNET2","Jean-Luc","M","5ème2","Composition Française"]
[204,"PAGET2","Denise","F","5ème2","Composition Française"]
[208,"PAROISSE","Annie","F","5ème2","Composition Française"]
[229,"ROUSSET","Dominique","F","5ème2","Composition Française"]
[243,"STOLZ","Hervé","F","5ème2","Composition Française"]
[269,"VUITTON","Alexandre","M","5ème2","Composition Française"]
[null,"Moyenne","Classe",null,"5ème2","Composition Française"]
[27,"BERTOCCHI","Jean-Denis","F","3ème1","Anglais"]
[29,"BESSARD","Stéphane","F","3ème1","Anglais"]
[33,"BLANCHON","Philippe","M","3ème1","Anglais"]
[59,"CASSUS","Joël","M","3ème1","Anglais"]
[64,"CHAUVIN","David","F","3ème1","Anglais"]
[78,"DAVID1","Damien","M","3ème1","Anglais"]
[93,"DIGONNAUX","Jean-Paul","M","3ème1","Anglais"]
[99,"DUTHION","Denis","M","3ème1","Anglais"]
[120,"GIMARET","Patrice","M","3ème1","Anglais"]
[122,"GIRARD","Jean-Marie","M","3ème1","Anglais"]
[126,"GRESET","François","M","3ème1","Anglais"]
[136,"GUYOT2","Jérôme","M","3ème1","Anglais"]
[145,"IVANES","Marie-Christine","F","3ème1","Anglais"]
[162,"LOPEZ","Didier","M","3ème1","Anglais"]
[176,"MATHIOT","Joël","M","3ème1","Anglais"]
[187,"MONNET1","Sylvie","M","3ème1","Anglais"]
[205,"PAGET1","Michel","F","3ème1","Anglais"]
[209,"PELLIN","Jean-François","M","3ème1","Anglais"]
[231,"ROY","Patrick","M","3ème1","Anglais"]
[244,"TARTAVEZ","Lucie","F","3ème1","Anglais"]
[250,"TONIUTTI","Anne","F","3ème1","Anglais"]
[259,"VAUCHER","Roland","F","3ème1","Anglais"]
[null,"Moyenne","Classe",null,"3ème1","Anglais"]
[8,"AUGER2","Patrice","M","5ème2","Anglais"]
[18,"BEAUPOIL","Christophe","M","5ème2","Anglais"]
[28,"BESANCON","Olivier","M","5ème2","Anglais",10,9,11,null,null,null,null,null,null,null,null,null,10]
[34,"BOILLETOT","Bruno","M","5ème2","Anglais"]
[47,"BRENIAUX","Léa","F","5ème2","Anglais"]
[83,"DEGAY","Jean-Yves","M","5ème2","Anglais"]
[106,"FERREUX","Philippe","M","5ème2","Anglais"]
[112,"GAHIER","Philippe","M","5ème2","Anglais"]
[121,"GINDRE","Jérôme","M","5ème2","Anglais"]
[125,"GRANDVUINET","Jean-Marc","M","5ème2","Anglais"]
[132,"GRUET","Jean","F","5ème2","Anglais"]
[140,"HERODY","Axelle","F","5ème2","Anglais"]
[157,"LAUBIER","Serge","M","5ème2","Anglais"]
[165,"MAIRE1","Laurent","F","5ème2","Anglais"]
[168,"MARCELIN","Jean-Noël","M","5ème2","Anglais"]
[186,"MONNET2","Jean-Luc","M","5ème2","Anglais"]
[204,"PAGET2","Denise","F","5ème2","Anglais"]
[208,"PAROISSE","Annie","F","5ème2","Anglais"]
[229,"ROUSSET","Dominique","F","5ème2","Anglais"]
[243,"STOLZ","Hervé","F","5ème2","Anglais"]
[269,"VUITTON","Alexandre","M","5ème2","Anglais"]
[null,"Moyenne","Classe",null,"5ème2","Anglais"]
[8,"AUGER2","Patrice","M","5ème2","Conduite"]
[18,"BEAUPOIL","Christophe","M","5ème2","Conduite"]
[28,"BESANCON","Olivier","M","5ème2","Conduite",10,9,11,null,null,null,null,null,null,null,null,null,10]
[34,"BOILLETOT","Bruno","M","5ème2","Conduite"]
[47,"BRENIAUX","Léa","F","5ème2","Conduite"]
[83,"DEGAY","Jean-Yves","M","5ème2","Conduite"]
[106,"FERREUX","Philippe","M","5ème2","Conduite"]
[112,"GAHIER","Philippe","M","5ème2","Conduite"]
[121,"GINDRE","Jérôme","M","5ème2","Conduite"]
[125,"GRANDVUINET","Jean-Marc","M","5ème2","Conduite"]
[132,"GRUET","Jean","F","5ème2","Conduite"]
[140,"HERODY","Axelle","F","5ème2","Conduite"]
[157,"LAUBIER","Serge","M","5ème2","Conduite"]
[165,"MAIRE1","Laurent","F","5ème2","Conduite"]
[168,"MARCELIN","Jean-Noël","M","5ème2","Conduite"]
[186,"MONNET2","Jean-Luc","M","5ème2","Conduite"]
[204,"PAGET2","Denise","F","5ème2","Conduite"]
[208,"PAROISSE","Annie","F","5ème2","Conduite"]
[229,"ROUSSET","Dominique","F","5ème2","Conduite"]
[243,"STOLZ","Hervé","F","5ème2","Conduite"]
[269,"VUITTON","Alexandre","M","5ème2","Conduite"]
[null,"Moyenne","Classe",null,"5ème2","Conduite"]

{"sheet":"niveaux","index":4,"n_rows":31,"n_cols":36,"rows_kept":31,"cut":false,"hidden":false,"merged":[]}
["Groupe","Classes","effectif","heur profs","différence","total heures","Toutes les matières","6ème","durée","total heures","5ème","durée","total heures","4ème","durée","total heures","3ème","durée","total heures","2nde","durée","total heures","1ère","durée","total heures","Tle","durée","total heures",8,null,null,null,null,null,null,13]
["6ème","6ème",35,56,{"$f":"+niveaux!$D2-niveaux!$F2","v":0},{"$f":"+J2+M2+P2+S2+V2+Y2+AB2","v":56},"Anglais","Anglais",4,8,"Anglais",4,8,"Anglais",4,8,"Anglais",4,8,"Anglais",4,{"$f":"+U2*$T$29","v":4},"Anglais",4,{"$f":"+X2*$W$29","v":12},"Anglais",4,{"$f":"+AA2*$Z$29","v":8}]
["6ème","6ème1",0,24,{"$f":"+niveaux!$D3-niveaux!$F3","v":0},{"$f":"+J3+M3+P3+S3+V2+Y2+AB2","v":24},"Français",null,null,null,null,null,null,null,null,null,null,null,null,"Français",4,{"$f":"+U3*$T$29","v":4},"Français",4,{"$f":"+X3*$W$29","v":12},"Français",4,{"$f":"+AA3*2","v":8}]
["6ème","6ème2",0,8,{"$f":"+niveaux!$D4-niveaux!$F4","v":0},{"$f":"+J4+M4+P4+S4","v":8},"Composition Française","Composition Française",1,2,"Composition Française",1,2,"Composition Française",1,2,"Composition Française",1,2]
["6ème","6ème3",0,14,{"$f":"+niveaux!$D5-niveaux!$F5","v":0},{"$f":"+J5+M5+P5+S5+V5+Y5+AB5","v":14},"Conduite","Conduite",1,2,"Conduite",1,2,"Conduite",1,2,"Conduite",1,2,"Conduite",1,{"$f":"+U5*$T$29","v":1},"Conduite",1,{"$f":"+X5*$W$29","v":3},"Conduite",1,{"$f":"+AA5*2","v":2}]
["5ème","5ème",38,8,{"$f":"+niveaux!$D6-niveaux!$F6","v":0},8,"EDHC","EDHC",1,{"$f":"+niveaux!$I6*$H$29","v":2},"EDHC",1,{"$f":"+niveaux!$L6*K$29","v":2},"EDHC",1,{"$f":"+niveaux!$O6*N$29","v":2},"EDHC",1,{"$f":"+niveaux!$R6*Q$29","v":2}]
["5ème","5ème1",0,28,{"$f":"+niveaux!$D7-niveaux!$F7","v":0},28,"EPS","EPS",2,{"$f":"+niveaux!$I7*$H$29","v":4},"EPS",2,{"$f":"+niveaux!$L7*K$29","v":4},"EPS",2,{"$f":"+niveaux!$O7*N$29","v":4},"EPS",2,{"$f":"+niveaux!$R7*Q$29","v":4},"EPS",2,{"$f":"+U7*$T$29","v":2},"EPS",2,{"$f":"+X7*$W$29","v":6},"EPS",2,{"$f":"+AA7*2","v":4}]
["5ème","5ème2",0,16,{"$f":"+niveaux!$D8-niveaux!$F8","v":0},16,"Expression Ecrite","Expression Ecrite",2,{"$f":"+niveaux!$I8*$H$29","v":4},"Expression Ecrite",2,{"$f":"+niveaux!$L8*K$29","v":4},"Expression Ecrite",2,{"$f":"+niveaux!$O8*N$29","v":4},"Expression Ecrite",2,{"$f":"+niveaux!$R8*Q$29","v":4}]
["5ème","5ème3",0,42,{"$f":"+niveaux!$D9-niveaux!$F9","v":0},42,"Histoire Géographie","Histoire Géographie",3,{"$f":"+niveaux!$I9*$H$29","v":6},"Histoire Géographie",3,{"$f":"+niveaux!$L9*K$29","v":6},"Histoire Géographie",3,{"$f":"+niveaux!$O9*N$29","v":6},"Histoire Géographie",3,{"$f":"+niveaux!$R9*Q$29","v":6},"Histoire Géographie",3,{"$f":"+U9*$T$29","v":3},"Histoire Géographie",3,{"$f":"+X9*$W$29","v":9},"Histoire Géographie",3,{"$f":"+AA9*2","v":6}]
["4ème","4ème",33,56,{"$f":"+niveaux!$D10-niveaux!$F10","v":0},56,"Mathématiques","Mathématiques",4,{"$f":"+niveaux!$I10*$H$29","v":8},"Mathématiques",4,{"$f":"+niveaux!$L10*K$29","v":8},"Mathématiques",4,{"$f":"+niveaux!$O10*N$29","v":8},"Mathématiques",4,{"$f":"+niveaux!$R10*Q$29","v":8},"Mathématiques",4,{"$f":"+U10*$T$29","v":4},"Mathématiques",4,{"$f":"+X10*$W$29","v":12},"Mathématiques",4,{"$f":"+AA10*2","v":8}]
["4ème","4ème1",0,16,{"$f":"+niveaux!$D11-niveaux!$F11","v":0},16,"Orthographe Grammaire","Orthographe Grammaire",2,{"$f":"+niveaux!$I11*$H$29","v":4},"Orthographe Grammaire",2,{"$f":"+niveaux!$L11*K$29","v":4},"Orthographe Grammaire",2,{"$f":"+niveaux!$O11*N$29","v":4},"Orthographe Grammaire",2,{"$f":"+niveaux!$R11*Q$29","v":4}]
["4ème","4ème2",0,14,{"$f":"+niveaux!$D12-niveaux!$F12","v":0},14,"Physique Chimie","Physique Chimie",1,{"$f":"+niveaux!$I12*$H$29","v":2},"Physique Chimie",1,{"$f":"+niveaux!$L12*K$29","v":2},"Physique Chimie",1,{"$f":"+niveaux!$O12*N$29","v":2},"Physique Chimie",1,{"$f":"+niveaux!$R12*Q$29","v":2},"Physique Chimie",1,{"$f":"+U12*$T$29","v":1},"Physique Chimie",1,{"$f":"+X12*$W$29","v":3},"Physique Chimie",1,{"$f":"+AA12*2","v":2}]
["4ème","4ème3",0,28,{"$f":"+niveaux!$D13-niveaux!$F13","v":0},{"$f":"+J13+M13+P13+S13+V13+Y13+AB13","v":28},"SVT","SVT",2,{"$f":"+niveaux!$I13*$H$29","v":4},"SVT",2,{"$f":"+niveaux!$L13*K$29","v":4},"SVT",2,{"$f":"+niveaux!$O13*N$29","v":4},"SVT",2,{"$f":"+niveaux!$R13*Q$29","v":4},"SVT",2,{"$f":"+U13*$T$29","v":2},"SVT",2,{"$f":"+X13*$W$29","v":6},"SVT",2,{"$f":"+AA13*2","v":4}]
["3ème","3ème",39,8,{"$f":"+niveaux!$D14-niveaux!$F14","v":0},{"$f":"+J14+M14+P14+S14+V14+Y14+AB14","v":8},"Arts Plastiques","Arts Plastiques",1,{"$f":"+niveaux!$I14*$H$29","v":2},"Arts Plastiques",1,{"$f":"+niveaux!$L14*K$29","v":2},"Arts Plastiques",1,{"$f":"+niveaux!$O14*N$29","v":2},"Arts Plastiques",1,{"$f":"+niveaux!$R14*Q$29","v":2}]
["3ème","3ème1",0,20,{"$f":"+niveaux!$D15-niveaux!$F15","v":0},{"$f":"+J15+M15+P15+S15+V15+Y15+AB15","v":20},"LV2",null,null,null,null,null,null,"LV2",2,{"$f":"+niveaux!$O15*N$29","v":4},"LV2",2,{"$f":"+niveaux!$R15*Q$29","v":4},"LV2",2,{"$f":"+U15*$T$29","v":2},"LV2",2,{"$f":"+X15*$W$29","v":6},"LV2",2,{"$f":"+AA15*2","v":4}]
["3ème","3ème2",0,10,{"$f":"+niveaux!$D16-niveaux!$F16","v":0},{"$f":"+J16+M16+P16+S16+V16+Y16+AB16","v":10},"Philosophie",null,null,null,null,null,null,null,null,null,null,null,null,null,null,null,"Philosophie",2,{"$f":"+X16*$W$29","v":6},"Philosophie",2,{"$f":"+AA16*2","v":4}]
["3ème","3ème3",0,null,null,null,null,null,"réels",null,null,"réels",null,"effectifs","réels",null,null,"réels",null,null,"réels",null,null,"réels",null,null,"réels"]
["2nde","2nde",24,null,null,null,null,"6ème",null,null,"5ème",null,null,"4ème",null,null,"3ème",null,null,"2nde",null,null,"1ère",null,null,"Tle"]
["2nde","2nde1",0,null,null,null,null,{"$f":"+C2","v":35},null,null,{"$f":"+C6","v":38},null,null,{"$f":"+C10","v":33},null,null,{"$f":"+C14","v":39},null,null,{"$f":"+niveaux!$C18","v":24},null,null,{"$f":"+C22","v":51},null,null,{"$f":"+C27","v":51}]
["2nde","2nde2",0,null,null,null,null,"6ème1",19,null,"5ème1",16,null,"4ème1",17,null,"3ème1",18,null,"2ndeA",24,null,"1ère1",17,null,"Tle1",21]
["2nde","2nde3",0,null,null,null,null,{"$f":"H$19/H$29","v":17.5},null,null,{"$f":"K$19/K$29","v":19},null,null,{"$f":"N$19/N$29","v":16.5},null,null,{"$f":"Q$19/Q$29","v":19.5},null,null,{"$f":"T$19/T$29","v":24},null,null,{"$f":"W$19/W$29","v":17},null,null,{"$f":"Z$19/Z$29","v":25.5}]
["1ère","1ère",51,null,null,null,null,"6ème2",17,null,"5ème2",23,null,"4ème2",17,null,"3ème2",22,null,null,0,null,"1ère2",23,null,"Tle2",31]
["1ère","1ère1",0,null,null,null,null,{"$f":"H$19/H$29","v":17.5},null,null,{"$f":"K$19/K$29","v":19},null,null,{"$f":"N$19/N$29","v":16.5},null,null,{"$f":"Q$19/Q$29","v":19.5},null,null,null,null,null,{"$f":"W$19/W$29","v":17},null,null,{"$f":"Z$19/Z$29","v":25.5}]
["1ère","1ère2",0,null,null,null,null,null,0,null,null,0,null,null,0,null,null,0,null,null,0,null,"1ère3",12,null,null,0]
["1ère","1ère3",0,null,null,null,null,null,null,null,null,null,null,null,null,null,null,null,null,null,null,null,{"$f":"W$19/W$29","v":17}]
["1ère","1ère4",0]
["Tle","Tle",51]
["Tle","Tle1",0,null,null,null,null,null,{"$f":"SUM(I18:I27)","v":36},null,null,{"$f":"SUM(L18:L27)","v":39},null,null,{"$f":"SUM(O18:O27)","v":34},null,null,{"$f":"SUM(R18:R27)","v":40},null,null,{"$f":"SUM(U18:U27)","v":24},null,null,{"$f":"SUM(X18:X27)","v":52},null,null,{"$f":"SUM(AA18:AA27)","v":52},{"$f":"SUM(H28:AA28)","v":277}]
["Tle","Tle2",0,null,null,null,null,{"$f":"ROUNDUP(H19/25,0)","v":2},null,null,2,null,null,{"$f":"ROUNDUP(N19/25,0)","v":2},null,null,{"$f":"ROUNDUP(Q19/25,0)","v":2},null,null,{"$f":"ROUNDUP(T19/25,0)","v":1},null,null,{"$f":"ROUNDUP(W19/25,0)","v":3},null,null,2,null,{"$f":"SUM(H29:Z29)","v":14}]
["Tle","Tle3",0]
["Tle","Tle4",0]

{"sheet":"classes","index":5,"n_rows":46,"n_cols":36,"rows_kept":46,"cut":false,"hidden":false,"merged":[]}
["6ème","durée","classe","prof","nbre hrs","5ème","durée","classe","prof","nbre hrs","4ème","durée","classe","prof","nbre hrs","3ème","durée","classe","prof","nbre hrs","2nde","durée","classe","prof","nbre hrs","1ère","durée","classe","prof","nbre hrs","Tle","durée","classe","prof","nbre hrs",10]
["Anglais",4,"6ème1","HOFFMANN Yannick",{"$f":"COUNTIF(emplTpsE!$B$3:$F$8,A2)","v":4},"Anglais",4,"5ème1","MAIRE Yves",{"$f":"COUNTIF(emplTpsE!$B$11:$F$16,F2)","v":4},"Anglais",4,"4ème1","MANNIER Gilbert",{"$f":"COUNTIF(emplTpsE!$B$51:$F$56,K2)","v":4},"Anglais",4,"3ème1","MAIRE Yves",{"$f":"COUNTIF(emplTpsE!$B$75:$F$80,P2)","v":4},"Anglais",4,"2nde1","HOFFMANN Yannick",{"$f":"COUNTIF(emplTpsE!$B$99:$F$104,U2)","v":4},"Anglais",4,"1ère1","HOFFMANN Yannick",{"$f":"COUNTIF(emplTpsE!$B$123:$F$128,Z2)","v":4},"Anglais",4,"Tle1","HOFFMANN Yannick",{"$f":"COUNTIF(emplTpsE!$B$147:$F$152,AE2)","v":4}]
[null,null,{"$f":"$C$2","v":"6ème1"},null,{"$f":"COUNTIF(emplTpsE!$B$3:$F$8,A3)","v":0},null,null,{"$f":"$H$2","v":"5ème1"},null,{"$f":"COUNTIF(emplTpsE!$B$11:$F$16,F3)","v":0},null,null,{"$f":"$M$2","v":"4ème1"},null,{"$f":"COUNTIF(emplTpsE!$B$51:$F$56,K3)","v":0},null,null,{"$f":"$R$2","v":"3ème1"},null,{"$f":"COUNTIF(emplTpsE!$B$75:$F$80,P3)","v":0},"Français",4,{"$f":"$W$2","v":"2nde1"},"BERTHELIER Josette",{"$f":"COUNTIF(emplTpsE!$B$99:$F$104,U3)","v":0},"Français",4,{"$f":"$AB$2","v":"1ère1"},"BERTHELIER Josette",{"$f":"COUNTIF(emplTpsE!$B$123:$F$128,Z3)","v":0},"Français",4,{"$f":"$AG$2","v":"Tle1"},"BERTHELIER Josette",{"$f":"COUNTIF(emplTpsE!$B$147:$F$152,AE3)","v":4}]
["Composition Française",1,"6ème1","SENOT Xavier",{"$f":"COUNTIF(emplTpsE!$B$3:$F$8,A4)","v":1},"Composition Française",1,"5ème1","SENOT Xavier",{"$f":"COUNTIF(emplTpsE!$B$11:$F$16,F4)","v":1},"Composition Française",1,"4ème1","BRULEBOIS Thomas",{"$f":"COUNTIF(emplTpsE!$B$51:$F$56,K4)","v":1},"Composition Française",1,"3ème1","SENOT Xavier",{"$f":"COUNTIF(emplTpsE!$B$75:$F$80,P4)","v":1},null,null,"2nde1",null,{"$f":"COUNTIF(emplTpsE!$B$99:$F$104,U4)","v":0},null,null,"1ère1",null,null,null,null,"Tle1",null,{"$f":"COUNTIF(emplTpsE!$B$147:$F$152,AE4)","v":0}]
["Conduite",1,"6ème1","COURVOISIER Gérald",{"$f":"COUNTIF(emplTpsE!$B$3:$F$8,A5)","v":1},"Conduite",1,"5ème1","COURVOISIER Gérald",{"$f":"COUNTIF(emplTpsE!$B$11:$F$16,F5)","v":1},"Conduite",1,"4ème1","COURVOISIER Gérald",{"$f":"COUNTIF(emplTpsE!$B$51:$F$56,K5)","v":1},"Conduite",1,"3ème1","COURVOISIER Gérald",{"$f":"COUNTIF(emplTpsE!$B$75:$F$80,P5)","v":1},"Conduite",1,"2nde1","COURVOISIER Gérald",{"$f":"COUNTIF(emplTpsE!$B$99:$F$104,U5)","v":1},"Conduite",1,"1ère1","COURVOISIER Gérald",{"$f":"COUNTIF(emplTpsE!$B$123:$F$128,Z5)","v":1},"Conduite",1,"Tle1","COURVOISIER Gérald",{"$f":"COUNTIF(emplTpsE!$B$147:$F$152,AE5)","v":1}]
["EDHC",1,"6ème1","MONNIER Bernard",{"$f":"COUNTIF(emplTpsE!$B$3:$F$8,A6)","v":1},"EDHC",1,"5ème1","MONNIER Bernard",{"$f":"COUNTIF(emplTpsE!$B$11:$F$16,F6)","v":1},"EDHC",1,"4ème1","MONNIER Bernard",{"$f":"COUNTIF(emplTpsE!$B$51:$F$56,K6)","v":1},"EDHC",1,"3ème1","MONNIER Bernard",{"$f":"COUNTIF(emplTpsE!$B$75:$F$80,P6)","v":1},null,null,"2nde1",null,{"$f":"COUNTIF(emplTpsE!$B$99:$F$104,U6)","v":0},null,null,"1ère1",null,{"$f":"COUNTIF(emplTpsE!$B$123:$F$128,Z6)","v":0},null,null,"Tle1",null,{"$f":"COUNTIF(emplTpsE!$B$147:$F$152,AE6)","v":0}]
["EPS",2,"6ème1","MONNERET Véronique",{"$f":"COUNTIF(emplTpsE!$B$3:$F$8,A7)","v":2},"EPS",2,"5ème1","ONCLE sophie",{"$f":"COUNTIF(emplTpsE!$B$11:$F$16,F7)","v":2},"EPS",2,"4ème1","ONCLE sophie",{"$f":"COUNTIF(emplTpsE!$B$51:$F$56,K7)","v":2},"EPS",2,"3ème1","ONCLE sophie",{"$f":"COUNTIF(emplTpsE!$B$75:$F$80,P7)","v":2},"EPS",2,"2nde1","ONCLE sophie",{"$f":"COUNTIF(emplTpsE!$B$99:$F$104,U7)","v":2},"EPS",2,"1ère1","MONNERET Véronique",{"$f":"COUNTIF(emplTpsE!$B$123:$F$128,Z7)","v":2},"EPS",2,"Tle1","MONNERET Véronique",{"$f":"COUNTIF(emplTpsE!$B$147:$F$152,AE7)","v":2}]
["Expression Ecrite",2,"6ème1","SENOT Xavier",{"$f":"COUNTIF(emplTpsE!$B$3:$F$8,A8)","v":2},"Expression Ecrite",2,"5ème1","SENOT Xavier",{"$f":"COUNTIF(emplTpsE!$B$11:$F$16,F8)","v":2},"Expression Ecrite",2,"4ème1","SENOT Xavier",{"$f":"COUNTIF(emplTpsE!$B$51:$F$56,K8)","v":2},"Expression Ecrite",2,"3ème1","SENOT Xavier",{"$f":"COUNTIF(emplTpsE!$B$75:$F$80,P8)","v":2},null,null,"2nde1",null,{"$f":"COUNTIF(emplTpsE!$B$99:$F$104,U8)","v":0},null,null,"1ère1",null,{"$f":"COUNTIF(emplTpsE!$B$123:$F$128,Z8)","v":0},null,null,"Tle1",null,{"$f":"COUNTIF(emplTpsE!$B$147:$F$152,AE8)","v":0}]
["Histoire Géographie",3,"6ème1","POUBO sam",{"$f":"COUNTIF(emplTpsE!$B$3:$F$8,A9)","v":3},"Histoire Géographie",3,"5ème1","BOURDY William",{"$f":"COUNTIF(emplTpsE!$B$11:$F$16,F9)","v":3},"Histoire Géographie",3,"4ème1","PAGET François",{"$f":"COUNTIF(emplTpsE!$B$51:$F$56,K9)","v":3},"Histoire Géographie",3,"3ème1","PAGET François",{"$f":"COUNTIF(emplTpsE!$B$75:$F$80,P9)","v":3},"Histoire Géographie",3,"2nde1","BOURDY William",{"$f":"COUNTIF(emplTpsE!$B$99:$F$104,U9)","v":3},"Histoire Géographie",3,"1ère1","BOURDY William",{"$f":"COUNTIF(emplTpsE!$B$123:$F$128,Z9)","v":3},"Histoire Géographie",3,"Tle1","PAGET François",{"$f":"COUNTIF(emplTpsE!$B$147:$F$152,AE9)","v":3}]
["Mathématiques",4,"6ème1","BOISSON Jean",{"$f":"COUNTIF(emplTpsE!$B$3:$F$8,A10)","v":4},"Mathématiques",4,"5ème1","BOISSON Jean",{"$f":"COUNTIF(emplTpsE!$B$11:$F$16,F10)","v":4},"Mathématiques",4,"4ème1","BOISSON Jean",{"$f":"COUNTIF(emplTpsE!$B$51:$F$56,K10)","v":4},"Mathématiques",4,"3ème1","BOISSON Jean",{"$f":"COUNTIF(emplTpsE!$B$75:$F$80,P10)","v":4},"Mathématiques",4,"2nde1","BOISSON Jean",{"$f":"COUNTIF(emplTpsE!$B$99:$F$104,U10)","v":4},"Mathématiques",4,"1ère1","BOISSON Jean",{"$f":"COUNTIF(emplTpsE!$B$123:$F$128,Z10)","v":4},"Mathématiques",4,"Tle1","BOISSON Jean",{"$f":"COUNTIF(emplTpsE!$B$147:$F$152,AE10)","v":4}]
["Orthographe Grammaire",2,"6ème1","DUFOUR Valérie",{"$f":"COUNTIF(emplTpsE!$B$3:$F$8,A11)","v":2},"Orthographe Grammaire",2,"5ème1","DUFOUR Valérie",{"$f":"COUNTIF(emplTpsE!$B$11:$F$16,F11)","v":2},"Orthographe Grammaire",2,"4ème1","DUFOUR Valérie",{"$f":"COUNTIF(emplTpsE!$B$51:$F$56,K11)","v":2},"Orthographe Grammaire",2,"3ème1","DUFOUR Valérie",{"$f":"COUNTIF(emplTpsE!$B$75:$F$80,P11)","v":2},null,null,"2nde1",null,{"$f":"COUNTIF(emplTpsE!$B$99:$F$104,U11)","v":0},null,null,"1ère1",null,{"$f":"COUNTIF(emplTpsE!$B$123:$F$128,Z11)","v":0},null,null,"Tle1",null,{"$f":"COUNTIF(emplTpsE!$B$147:$F$152,AE11)","v":0}]
["Physique Chimie",1,"6ème1","LAMBERGER Stéphane",{"$f":"COUNTIF(emplTpsE!$B$3:$F$8,A12)","v":1},"Physique Chimie",1,"5ème1","LAMBERGER Stéphane",{"$f":"COUNTIF(emplTpsE!$B$11:$F$16,F12)","v":1},"Physique Chimie",1,"4ème1","LAMBERGER Stéphane",{"$f":"COUNTIF(emplTpsE!$B$51:$F$56,K12)","v":1},"Physique Chimie",1,"3ème1","LAMBERGER Stéphane",{"$f":"COUNTIF(emplTpsE!$B$75:$F$80,P12)","v":1},"Physique Chimie",1,"2nde1","LAMBERGER Stéphane",{"$f":"COUNTIF(emplTpsE!$B$99:$F$104,U12)","v":1},"Physique Chimie",1,"1ère1","LAMBERGER Stéphane",{"$f":"COUNTIF(emplTpsE!$B$123:$F$128,Z12)","v":1},"Physique Chimie",1,"Tle1","LAMBERGER Stéphane",{"$f":"COUNTIF(emplTpsE!$B$147:$F$152,AE12)","v":1}]
["SVT",2,"6ème1","MAIROT Virginie",{"$f":"COUNTIF(emplTpsE!$B$3:$F$8,A13)","v":2},"SVT",2,"5ème1","MAIROT Virginie",{"$f":"COUNTIF(emplTpsE!$B$11:$F$16,F13)","v":2},"SVT",2,"4ème1","MAIROT Virginie",{"$f":"COUNTIF(emplTpsE!$B$51:$F$56,K13)","v":2},"SVT",2,"3ème1","PUILLET Michel",{"$f":"COUNTIF(emplTpsE!$B$75:$F$80,P13)","v":2},"SVT",2,"2nde1","MAIROT Virginie",{"$f":"COUNTIF(emplTpsE!$B$99:$F$104,U13)","v":2},"SVT",2,"1ère1","MAIROT Virginie",{"$f":"COUNTIF(emplTpsE!$B$123:$F$128,Z13)","v":2},"SVT",2,"Tle1","MAIROT Virginie",{"$f":"COUNTIF(emplTpsE!$B$147:$F$152,AE13)","v":2}]
["Arts Plastiques",1,"6ème1","ARNAUD Yann",{"$f":"COUNTIF(emplTpsE!$B$3:$F$8,A14)","v":1},"Arts Plastiques",1,"5ème1","ARNAUD Yann",{"$f":"COUNTIF(emplTpsE!$B$11:$F$16,F14)","v":1},"Arts Plastiques",1,"4ème1","ARNAUD Yann",{"$f":"COUNTIF(emplTpsE!$B$51:$F$56,K14)","v":1},"Arts Plastiques",1,"3ème1","ARNAUD Yann",{"$f":"COUNTIF(emplTpsE!$B$75:$F$80,P14)","v":1},null,null,"2nde1",null,{"$f":"COUNTIF(emplTpsE!$B$99:$F$104,U14)","v":0},null,null,"1ère1",null,{"$f":"COUNTIF(emplTpsE!$B$123:$F$128,Z14)","v":0},null,null,"Tle1",null,{"$f":"COUNTIF(emplTpsE!$B$147:$F$152,AE14)","v":0}]
[null,null,"6ème1",null,{"$f":"COUNTIF(emplTpsE!$B$3:$F$8,A15)","v":0},null,null,"5ème1",null,{"$f":"COUNTIF(emplTpsE!$B$11:$F$16,F15)","v":0},"LV2",2,"4ème1","BAILLY Thierry",{"$f":"COUNTIF(emplTpsE!$B$51:$F$56,K15)","v":2},"LV2",2,"3ème1","BAILLY Thierry",{"$f":"COUNTIF(emplTpsE!$B$75:$F$80,P15)","v":2},"LV2",2,"2nde1","BAILLY Thierry",{"$f":"COUNTIF(emplTpsE!$B$99:$F$104,U15)","v":2},"LV2",2,"1ère1","BAILLY Thierry",{"$f":"COUNTIF(emplTpsE!$B$123:$F$128,Z15)","v":2},"LV2",2,"Tle1","BAILLY Thierry",{"$f":"COUNTIF(emplTpsE!$B$147:$F$152,AE15)","v":2}]
[null,null,"6ème1",null,{"$f":"COUNTIF(emplTpsE!$B$3:$F$8,A16)","v":0},null,null,"5ème1",null,{"$f":"COUNTIF(emplTpsE!$B$11:$F$16,F16)","v":0},null,null,"4ème1",null,{"$f":"COUNTIF(emplTpsE!$B$51:$F$56,K16)","v":0},null,null,"3ème1",null,{"$f":"COUNTIF(emplTpsE!$B$75:$F$80,P16)","v":0},null,null,"2nde1",null,{"$f":"COUNTIF(emplTpsE!$B$99:$F$104,U16)","v":0},"Philosophie",2,"1ère1","SENOT Xavier",{"$f":"COUNTIF(emplTpsE!$B$123:$F$128,Z16)","v":2},"Philosophie",2,"Tle1","SENOT Xavier",{"$f":"COUNTIF(emplTpsE!$B$147:$F$152,AE16)","v":2}]
["Anglais",4,"6ème2","MAIRE Yves",{"$f":"COUNTIF(emplTpsE!$B$11:$F$16,A17)","v":4},"Anglais",4,"5ème2","MANNIER Gilbert",{"$f":"COUNTIF(emplTpsE!$B$35:$F$40,F17)","v":4},"Anglais",4,"4ème2","MANNIER Gilbert",{"$f":"COUNTIF(emplTpsE!$B$59:$F$64,K17)","v":4},"Anglais",4,"3ème2","MAIRE Yves",{"$f":"COUNTIF(emplTpsE!$B$83:$F$88,P17)","v":4},null,null,null,null,null,"Anglais",4,"1ère2","HOFFMANN Yannick",{"$f":"COUNTIF(emplTpsE!$B$131:$F$136,Z17)","v":4},"Anglais",4,"Tle2","HOFFMANN Yannick",{"$f":"COUNTIF(emplTpsE!$B$155:$F$160,AE17)","v":4}]
[null,null,{"$f":"$C$17","v":"6ème2"},null,{"$f":"COUNTIF(emplTpsE!$B$11:$F$16,A18)","v":0},null,null,{"$f":"$H$17","v":"5ème2"},null,{"$f":"COUNTIF(emplTpsE!$B$35:$F$40,F18)","v":0},null,null,{"$f":"$M$17","v":"4ème2"},null,{"$f":"COUNTIF(emplTpsE!$B$59:$F$64,K18)","v":0},null,null,{"$f":"$R$17","v":"3ème2"},null,{"$f":"COUNTIF(emplTpsE!$B$83:$F$88,P18)","v":0},null,null,{"$f":"$W$17","v":0},null,{"$f":"COUNTIF(emplTpsE!$B$107:$F$112,U18)","v":0},"Français",4,{"$f":"$AB$17","v":"1ère2"},"BERTHELIER Josette",{"$f":"COUNTIF(emplTpsE!$B$131:$F$136,Z18)","v":1},"Français",4,{"$f":"$AG$17","v":"Tle2"},"BERTHELIER Josette",{"$f":"COUNTIF(emplTpsE!$B$155:$F$160,AE18)","v":4}]
["Composition Française",1,"6ème2","BRULEBOIS Thomas",{"$f":"COUNTIF(emplTpsE!$B$11:$F$16,A19)","v":1},"Composition Française",1,"5ème2","BRULEBOIS Thomas",{"$f":"COUNTIF(emplTpsE!$B$35:$F$40,F19)","v":1},"Composition Française",1,"4ème2","BRULEBOIS Thomas",{"$f":"COUNTIF(emplTpsE!$B$59:$F$64,K19)","v":1},"Composition Française",1,"3ème2","SENOT Xavier",{"$f":"COUNTIF(emplTpsE!$B$83:$F$88,P19)","v":1},null,null,0,null,{"$f":"COUNTIF(emplTpsE!$B$107:$F$112,U19)","v":0},null,null,"1ère2",null,{"$f":"COUNTIF(emplTpsE!$B$131:$F$136,Z19)","v":0},null,null,"Tle2",null,{"$f":"COUNTIF(emplTpsE!$B$155:$F$160,AE19)","v":0}]
["Conduite",1,"6ème2","COURVOISIER Gérald",{"$f":"COUNTIF(emplTpsE!$B$11:$F$16,A20)","v":1},"Conduite",1,"5ème2","COURVOISIER Gérald",{"$f":"COUNTIF(emplTpsE!$B$35:$F$40,F20)","v":1},"Conduite",1,"4ème2","COURVOISIER Gérald",{"$f":"COUNTIF(emplTpsE!$B$59:$F$64,K20)","v":1},"Conduite",1,"3ème2","COURVOISIER Gérald",{"$f":"COUNTIF(emplTpsE!$B$83:$F$88,P20)","v":1},null,null,0,null,{"$f":"COUNTIF(emplTpsE!$B$107:$F$112,U20)","v":0},"Conduite",1,"1ère2","COURVOISIER Gérald",{"$f":"COUNTIF(emplTpsE!$B$131:$F$136,Z20)","v":1},"Conduite",1,"Tle2","COURVOISIER Gérald",{"$f":"COUNTIF(emplTpsE!$B$155:$F$160,AE20)","v":1}]
["EDHC",1,"6ème2","MONNIER Bernard",{"$f":"COUNTIF(emplTpsE!$B$11:$F$16,A21)","v":1},"EDHC",1,"5ème2","MONNIER Bernard",{"$f":"COUNTIF(emplTpsE!$B$35:$F$40,F21)","v":1},"EDHC",1,"4ème2","MONNIER Bernard",{"$f":"COUNTIF(emplTpsE!$B$59:$F$64,K21)","v":1},"EDHC",1,"3ème2","MONNIER Bernard",{"$f":"COUNTIF(emplTpsE!$B$83:$F$88,P21)","v":1},null,null,0,null,{"$f":"COUNTIF(emplTpsE!$B$107:$F$112,U21)","v":0},null,null,"1ère2",null,{"$f":"COUNTIF(emplTpsE!$B$131:$F$136,Z21)","v":0},null,null,"Tle2",null,{"$f":"COUNTIF(emplTpsE!$B$155:$F$160,AE21)","v":0}]
["EPS",2,"6ème2","ONCLE sophie",{"$f":"COUNTIF(emplTpsE!$B$11:$F$16,A22)","v":2},"EPS",2,"5ème2","MONNERET Véronique",{"$f":"COUNTIF(emplTpsE!$B$35:$F$40,F22)","v":2},"EPS",2,"4ème2","ONCLE sophie",{"$f":"COUNTIF(emplTpsE!$B$59:$F$64,K22)","v":2},"EPS",2,"3ème2","MONNERET Véronique",{"$f":"COUNTIF(emplTpsE!$B$83:$F$88,P22)","v":2},null,null,0,null,{"$f":"COUNTIF(emplTpsE!$B$107:$F$112,U22)","v":0},"EPS",2,"1ère2","MONNERET Véronique",{"$f":"COUNTIF(emplTpsE!$B$131:$F$136,Z22)","v":2},"EPS",2,"Tle2","ONCLE sophie",{"$f":"COUNTIF(emplTpsE!$B$155:$F$160,AE22)","v":2}]
["Expression Ecrite",2,"6ème2","SENOT Xavier",{"$f":"COUNTIF(emplTpsE!$B$11:$F$16,A23)","v":2},"Expression Ecrite",2,"5ème2","SENOT Xavier",{"$f":"COUNTIF(emplTpsE!$B$35:$F$40,F23)","v":2},"Expression Ecrite",2,"4ème2","SENOT Xavier",{"$f":"COUNTIF(emplTpsE!$B$59:$F$64,K23)","v":2},"Expression Ecrite",2,"3ème2","SENOT Xavier",{"$f":"COUNTIF(emplTpsE!$B$83:$F$88,P23)","v":2},null,null,0,null,{"$f":"COUNTIF(emplTpsE!$B$107:$F$112,U23)","v":0},null,null,"1ère2",null,{"$f":"COUNTIF(emplTpsE!$B$131:$F$136,Z23)","v":0},null,null,"Tle2",null,{"$f":"COUNTIF(emplTpsE!$B$155:$F$160,AE23)","v":0}]
["Histoire Géographie",3,"6ème2","PAGET François",{"$f":"COUNTIF(emplTpsE!$B$11:$F$16,A24)","v":3},"Histoire Géographie",3,"5ème2","PAGET François",{"$f":"COUNTIF(emplTpsE!$B$35:$F$40,F24)","v":3},"Histoire Géographie",3,"4ème2","PAGET François",{"$f":"COUNTIF(emplTpsE!$B$59:$F$64,K24)","v":3},"Histoire Géographie",3,"3ème2","POUBO sam",{"$f":"COUNTIF(emplTpsE!$B$83:$F$88,P24)","v":3},null,null,0,null,{"$f":"COUNTIF(emplTpsE!$B$107:$F$112,U24)","v":0},"Histoire Géographie",3,"1ère2","POUBO sam",{"$f":"COUNTIF(emplTpsE!$B$131:$F$136,Z24)","v":3},"Histoire Géographie",3,"Tle2","POUBO sam",{"$f":"COUNTIF(emplTpsE!$B$155:$F$160,AE24)","v":3}]
["Mathématiques",4,"6ème2","LEGRAND Yvan",{"$f":"COUNTIF(emplTpsE!$B$11:$F$16,A25)","v":4},"Mathématiques",4,"5ème2","MATHIEU Daniel",{"$f":"COUNTIF(emplTpsE!$B$35:$F$40,F25)","v":4},"Mathématiques",4,"4ème2","MATHIEU Daniel",{"$f":"COUNTIF(emplTpsE!$B$59:$F$64,K25)","v":4},"Mathématiques",4,"3ème2","MATHIEU Daniel",{"$f":"COUNTIF(emplTpsE!$B$83:$F$88,P25)","v":4},null,null,0,null,{"$f":"COUNTIF(emplTpsE!$B$107:$F$112,U25)","v":0},"Mathématiques",4,"1ère2","MATHIEU Daniel",{"$f":"COUNTIF(emplTpsE!$B$131:$F$136,Z25)","v":4},"Mathématiques",4,"Tle2","MATHIEU Daniel",{"$f":"COUNTIF(emplTpsE!$B$155:$F$160,AE25)","v":4}]
["Orthographe Grammaire",2,"6ème2","DUFOUR Valérie",{"$f":"COUNTIF(emplTpsE!$B$11:$F$16,A26)","v":2},"Orthographe Grammaire",2,"5ème2","DUFOUR Valérie",{"$f":"COUNTIF(emplTpsE!$B$35:$F$40,F26)","v":2},"Orthographe Grammaire",2,"4ème2","DUFOUR Valérie",{"$f":"COUNTIF(emplTpsE!$B$59:$F$64,K26)","v":2},"Orthographe Grammaire",2,"3ème2","DUFOUR Valérie",{"$f":"COUNTIF(emplTpsE!$B$83:$F$88,P26)","v":2},null,null,0,null,{"$f":"COUNTIF(emplTpsE!$B$107:$F$112,U26)","v":0},null,null,"1ère2",null,{"$f":"COUNTIF(emplTpsE!$B$131:$F$136,Z26)","v":0},null,null,"Tle2",null,{"$f":"COUNTIF(emplTpsE!$B$155:$F$160,AE26)","v":0}]
["Physique Chimie",1,"6ème2","LAMBERGER Stéphane",{"$f":"COUNTIF(emplTpsE!$B$11:$F$16,A27)","v":1},"Physique Chimie",1,"5ème2","LAMBERGER Stéphane",{"$f":"COUNTIF(emplTpsE!$B$35:$F$40,F27)","v":1},"Physique Chimie",1,"4ème2","LAMBERGER Stéphane",{"$f":"COUNTIF(emplTpsE!$B$59:$F$64,K27)","v":1},"Physique Chimie",1,"3ème2","LAMBERGER Stéphane",{"$f":"COUNTIF(emplTpsE!$B$83:$F$88,P27)","v":1},null,null,0,null,{"$f":"COUNTIF(emplTpsE!$B$107:$F$112,U27)","v":0},"Physique Chimie",1,"1ère2","LAMBERGER Stéphane",{"$f":"COUNTIF(emplTpsE!$B$131:$F$136,Z27)","v":1},"Physique Chimie",1,"Tle2","LAMBERGER Stéphane",{"$f":"COUNTIF(emplTpsE!$B$155:$F$160,AE27)","v":1}]
["SVT",2,"6ème2","PUILLET Michel",{"$f":"COUNTIF(emplTpsE!$B$11:$F$16,A28)","v":2},"SVT",2,"5ème2","PUILLET Michel",{"$f":"COUNTIF(emplTpsE!$B$35:$F$40,F28)","v":2},"SVT",2,"4ème2","PUILLET Michel",{"$f":"COUNTIF(emplTpsE!$B$59:$F$64,K28)","v":2},"SVT",2,"3ème2","MAIROT Virginie",{"$f":"COUNTIF(emplTpsE!$B$83:$F$88,P28)","v":2},null,null,0,null,{"$f":"COUNTIF(emplTpsE!$B$107:$F$112,U28)","v":0},"SVT",2,"1ère2","MAIROT Virginie",{"$f":"COUNTIF(emplTpsE!$B$131:$F$136,Z28)","v":2},"SVT",2,"Tle2","MAIROT Virginie",{"$f":"COUNTIF(emplTpsE!$B$155:$F$160,AE28)","v":2}]
["Arts Plastiques",1,"6ème2","ARNAUD Yann",{"$f":"COUNTIF(emplTpsE!$B$11:$F$16,A29)","v":1},"Arts Plastiques",1,"5ème2","ARNAUD Yann",{"$f":"COUNTIF(emplTpsE!$B$35:$F$40,F29)","v":1},"Arts Plastiques",1,"4ème2","ARNAUD Yann",{"$f":"COUNTIF(emplTpsE!$B$59:$F$64,K29)","v":1},"Arts Plastiques",1,"3ème2","ARNAUD Yann",{"$f":"COUNTIF(emplTpsE!$B$83:$F$88,P29)","v":1},null,null,0,null,{"$f":"COUNTIF(emplTpsE!$B$107:$F$112,U29)","v":0},null,null,"1ère2",null,{"$f":"COUNTIF(emplTpsE!$B$131:$F$136,Z29)","v":0},null,null,"Tle2",null,{"$f":"COUNTIF(emplTpsE!$B$155:$F$160,AE29)","v":0}]
[null,null,"6ème2",null,{"$f":"COUNTIF(emplTpsE!$B$11:$F$16,A30)","v":0},null,null,"5ème2",null,{"$f":"COUNTIF(emplTpsE!$B$35:$F$40,F30)","v":0},"LV2",2,"4ème2","BAILLY Thierry",{"$f":"COUNTIF(emplTpsE!$B$59:$F$64,K30)","v":2},"LV2",2,"3ème2","BAILLY Thierry",{"$f":"COUNTIF(emplTpsE!$B$83:$F$88,P30)","v":2},null,null,0,null,{"$f":"COUNTIF(emplTpsE!$B$107:$F$112,U30)","v":0},"LV2",2,"1ère2","BAILLY Thierry",{"$f":"COUNTIF(emplTpsE!$B$131:$F$136,Z30)","v":2},"LV2",2,"Tle2","BAILLY Thierry",{"$f":"COUNTIF(emplTpsE!$B$155:$F$160,AE30)","v":2}]
[null,null,"6ème2",null,{"$f":"COUNTIF(emplTpsE!$B$11:$F$16,A31)","v":0},null,null,"5ème2",null,{"$f":"COUNTIF(emplTpsE!$B$35:$F$40,F31)","v":0},null,null,"4ème2",null,{"$f":"COUNTIF(emplTpsE!$B$59:$F$64,K31)","v":0},null,null,"3ème2",null,{"$f":"COUNTIF(emplTpsE!$B$83:$F$88,P31)","v":0},null,null,0,null,{"$f":"COUNTIF(emplTpsE!$B$107:$F$112,U31)","v":0},"Philosophie",2,"1ère2","SENOT Xavier",{"$f":"COUNTIF(emplTpsE!$B$131:$F$136,Z31)","v":1},"Philosophie",2,"Tle2","SENOT Xavier",{"$f":"COUNTIF(emplTpsE!$B$155:$F$160,AE31)","v":2}]
[null,null,null,null,{"$f":"COUNTIF(emplTpsE!$B$19:$F$24,A32)","v":0},null,null,null,null,{"$f":"COUNTIF(emplTpsE!$B$43:$F$48,F32)","v":0},null,null,null,null,{"$f":"COUNTIF(emplTpsE!$B$67:$F$72,K32)","v":0},null,null,null,null,{"$f":"COUNTIF(emplTpsE!$B$91:$F$96,P32)","v":0},null,null,null,null,{"$f":"COUNTIF(emplTpsE!$B$115:$F$120,U32)","v":0},"Anglais",4,"1ère3","MANNIER Gilbert",{"$f":"COUNTIF(emplTpsE!$B$139:$F$144,Z32)","v":4},null,null,null,null,{"$f":"COUNTIF(emplTpsE!$B$163:$F$168,AE32)","v":0}]
[null,null,{"$f":"$C$32","v":0},null,{"$f":"COUNTIF(emplTpsE!$B$19:$F$24,A33)","v":0},null,null,{"$f":"$H$32","v":0},null,{"$f":"COUNTIF(emplTpsE!$B$43:$F$48,F33)","v":0},null,null,{"$f":"$M$32","v":0},null,{"$f":"COUNTIF(emplTpsE!$B$67:$F$72,K33)","v":0},null,null,{"$f":"$R$32","v":0},null,{"$f":"COUNTIF(emplTpsE!$B$91:$F$96,P33)","v":0},null,null,{"$f":"$W$32","v":0},null,{"$f":"COUNTIF(emplTpsE!$B$115:$F$120,U33)","v":0},"Français",4,{"$f":"$AB$32","v":"1ère3"},"BERTHELIER Josette",{"$f":"COUNTIF(emplTpsE!$B$139:$F$144,Z33)","v":4},null,null,{"$f":"$AG$32","v":0},null,{"$f":"COUNTIF(emplTpsE!$B$163:$F$168,AE33)","v":0}]
[null,null,0,null,{"$f":"COUNTIF(emplTpsE!$B$19:$F$24,A34)","v":0},null,null,0,null,{"$f":"COUNTIF(emplTpsE!$B$43:$F$48,F34)","v":0},null,null,0,null,{"$f":"COUNTIF(emplTpsE!$B$67:$F$72,K34)","v":0},null,null,0,null,{"$f":"COUNTIF(emplTpsE!$B$91:$F$96,P34)","v":0},null,null,0,null,{"$f":"COUNTIF(emplTpsE!$B$115:$F$120,U34)","v":0},null,null,"1ère3",null,{"$f":"COUNTIF(emplTpsE!$B$139:$F$144,Z34)","v":0},null,null,0,null,{"$f":"COUNTIF(emplTpsE!$B$163:$F$168,AE34)","v":0}]
[null,null,0,null,{"$f":"COUNTIF(emplTpsE!$B$19:$F$24,A35)","v":0},null,null,0,null,{"$f":"COUNTIF(emplTpsE!$B$43:$F$48,F35)","v":0},null,null,0,null,{"$f":"COUNTIF(emplTpsE!$B$67:$F$72,K35)","v":0},null,null,0,null,{"$f":"COUNTIF(emplTpsE!$B$91:$F$96,P35)","v":0},null,null,0,null,{"$f":"COUNTIF(emplTpsE!$B$115:$F$120,U35)","v":0},"Conduite",1,"1ère3","COURVOISIER Gérald",{"$f":"COUNTIF(emplTpsE!$B$139:$F$144,Z35)","v":1},null,null,0,null,{"$f":"COUNTIF(emplTpsE!$B$163:$F$168,AE35)","v":0}]
[null,null,0,null,{"$f":"COUNTIF(emplTpsE!$B$19:$F$24,A36)","v":0},null,null,0,null,{"$f":"COUNTIF(emplTpsE!$B$43:$F$48,F36)","v":0},null,null,0,null,{"$f":"COUNTIF(emplTpsE!$B$67:$F$72,K36)","v":0},null,null,0,null,{"$f":"COUNTIF(emplTpsE!$B$91:$F$96,P36)","v":0},null,null,0,null,{"$f":"COUNTIF(emplTpsE!$B$115:$F$120,U36)","v":0},null,null,"1ère3",null,{"$f":"COUNTIF(emplTpsE!$B$139:$F$144,Z36)","v":0},null,null,0,null,{"$f":"COUNTIF(emplTpsE!$B$163:$F$168,AE36)","v":0}]
[null,null,0,null,{"$f":"COUNTIF(emplTpsE!$B$19:$F$24,A37)","v":0},null,null,0,null,{"$f":"COUNTIF(emplTpsE!$B$43:$F$48,F37)","v":0},null,null,0,null,{"$f":"COUNTIF(emplTpsE!$B$67:$F$72,K37)","v":0},null,null,0,null,{"$f":"COUNTIF(emplTpsE!$B$91:$F$96,P37)","v":0},null,null,0,null,{"$f":"COUNTIF(emplTpsE!$B$115:$F$120,U37)","v":0},"EPS",2,"1ère3","MONNERET Véronique",{"$f":"COUNTIF(emplTpsE!$B$139:$F$144,Z37)","v":2},null,null,0,null,{"$f":"COUNTIF(emplTpsE!$B$163:$F$168,AE37)","v":0}]
[null,null,0,null,{"$f":"COUNTIF(emplTpsE!$B$19:$F$24,A38)","v":0},null,null,0,null,{"$f":"COUNTIF(emplTpsE!$B$43:$F$48,F38)","v":0},null,null,0,null,{"$f":"COUNTIF(emplTpsE!$B$67:$F$72,K38)","v":0},null,null,0,null,{"$f":"COUNTIF(emplTpsE!$B$91:$F$96,P38)","v":0},null,null,0,null,{"$f":"COUNTIF(emplTpsE!$B$115:$F$120,U38)","v":0},null,null,"1ère3",null,{"$f":"COUNTIF(emplTpsE!$B$139:$F$144,Z38)","v":0},null,null,0,null,{"$f":"COUNTIF(emplTpsE!$B$163:$F$168,AE38)","v":0}]
[null,null,0,null,{"$f":"COUNTIF(emplTpsE!$B$19:$F$24,A39)","v":0},null,null,0,null,{"$f":"COUNTIF(emplTpsE!$B$43:$F$48,F39)","v":0},null,null,0,null,{"$f":"COUNTIF(emplTpsE!$B$67:$F$72,K39)","v":0},null,null,0,null,{"$f":"COUNTIF(emplTpsE!$B$91:$F$96,P39)","v":0},null,null,0,null,{"$f":"COUNTIF(emplTpsE!$B$115:$F$120,U39)","v":0},"Histoire Géographie",3,"1ère3","POUBO sam",{"$f":"COUNTIF(emplTpsE!$B$139:$F$144,Z39)","v":3},null,null,0,null,{"$f":"COUNTIF(emplTpsE!$B$163:$F$168,AE39)","v":0}]
[null,null,0,null,{"$f":"COUNTIF(emplTpsE!$B$19:$F$24,A40)","v":0},null,null,0,null,{"$f":"COUNTIF(emplTpsE!$B$43:$F$48,F40)","v":0},null,null,0,null,{"$f":"COUNTIF(emplTpsE!$B$67:$F$72,K40)","v":0},null,null,0,null,{"$f":"COUNTIF(emplTpsE!$B$91:$F$96,P40)","v":0},null,null,0,null,{"$f":"COUNTIF(emplTpsE!$B$115:$F$120,U40)","v":0},"Mathématiques",4,"1ère3","BOISSON Jean",{"$f":"COUNTIF(emplTpsE!$B$139:$F$144,Z40)","v":4},null,null,0,null,{"$f":"COUNTIF(emplTpsE!$B$163:$F$168,AE40)","v":0}]
[null,null,0,null,{"$f":"COUNTIF(emplTpsE!$B$19:$F$24,A41)","v":0},null,null,0,null,{"$f":"COUNTIF(emplTpsE!$B$43:$F$48,F41)","v":0},null,null,0,null,{"$f":"COUNTIF(emplTpsE!$B$67:$F$72,K41)","v":0},null,null,0,null,{"$f":"COUNTIF(emplTpsE!$B$91:$F$96,P41)","v":0},null,null,0,null,{"$f":"COUNTIF(emplTpsE!$B$115:$F$120,U41)","v":0},null,null,"1ère3",null,{"$f":"COUNTIF(emplTpsE!$B$139:$F$144,Z41)","v":0},null,null,0,null,{"$f":"COUNTIF(emplTpsE!$B$163:$F$168,AE41)","v":0}]
[null,null,0,null,{"$f":"COUNTIF(emplTpsE!$B$19:$F$24,A42)","v":0},null,null,0,null,{"$f":"COUNTIF(emplTpsE!$B$43:$F$48,F42)","v":0},null,null,0,null,{"$f":"COUNTIF(emplTpsE!$B$67:$F$72,K42)","v":0},null,null,0,null,{"$f":"COUNTIF(emplTpsE!$B$91:$F$96,P42)","v":0},null,null,0,null,{"$f":"COUNTIF(emplTpsE!$B$115:$F$120,U42)","v":0},"Physique Chimie",1,"1ère3","LAMBERGER Stéphane",{"$f":"COUNTIF(emplTpsE!$B$139:$F$144,Z42)","v":1},null,null,0,null,{"$f":"COUNTIF(emplTpsE!$B$163:$F$168,AE42)","v":0}]
[null,null,0,null,{"$f":"COUNTIF(emplTpsE!$B$19:$F$24,A43)","v":0},null,null,0,null,{"$f":"COUNTIF(emplTpsE!$B$43:$F$48,F43)","v":0},null,null,0,null,{"$f":"COUNTIF(emplTpsE!$B$67:$F$72,K43)","v":0},null,null,0,null,{"$f":"COUNTIF(emplTpsE!$B$91:$F$96,P43)","v":0},null,null,0,null,{"$f":"COUNTIF(emplTpsE!$B$115:$F$120,U43)","v":0},"SVT",2,"1ère3","MAIROT Virginie",{"$f":"COUNTIF(emplTpsE!$B$139:$F$144,Z43)","v":2},null,null,0,null,{"$f":"COUNTIF(emplTpsE!$B$163:$F$168,AE43)","v":0}]
[null,null,0,null,{"$f":"COUNTIF(emplTpsE!$B$19:$F$24,A44)","v":0},null,null,0,null,{"$f":"COUNTIF(emplTpsE!$B$43:$F$48,F44)","v":0},null,null,0,null,{"$f":"COUNTIF(emplTpsE!$B$67:$F$72,K44)","v":0},null,null,0,null,{"$f":"COUNTIF(emplTpsE!$B$91:$F$96,P44)","v":0},null,null,0,null,{"$f":"COUNTIF(emplTpsE!$B$115:$F$120,U44)","v":0},null,null,"1ère3",null,{"$f":"COUNTIF(emplTpsE!$B$139:$F$144,Z44)","v":0},null,null,0,null,{"$f":"COUNTIF(emplTpsE!$B$163:$F$168,AE44)","v":0}]
[null,null,0,null,{"$f":"COUNTIF(emplTpsE!$B$19:$F$24,A45)","v":0},null,null,0,null,{"$f":"COUNTIF(emplTpsE!$B$43:$F$48,F45)","v":0},null,null,0,null,{"$f":"COUNTIF(emplTpsE!$B$67:$F$72,K45)","v":0},null,null,0,null,{"$f":"COUNTIF(emplTpsE!$B$91:$F$96,P45)","v":0},null,null,0,null,{"$f":"COUNTIF(emplTpsE!$B$115:$F$120,U45)","v":0},"LV2",2,"1ère3","BAILLY Thierry",{"$f":"COUNTIF(emplTpsE!$B$139:$F$144,Z45)","v":2},null,null,0,null,{"$f":"COUNTIF(emplTpsE!$B$163:$F$168,AE45)","v":0}]
[null,null,0,null,{"$f":"COUNTIF(emplTpsE!$B$19:$F$24,A46)","v":0},null,null,0,null,{"$f":"COUNTIF(emplTpsE!$B$43:$F$48,F46)","v":0},null,null,0,null,{"$f":"COUNTIF(emplTpsE!$B$67:$F$72,K46)","v":0},null,null,0,null,{"$f":"COUNTIF(emplTpsE!$B$91:$F$96,P46)","v":0},null,null,0,null,{"$f":"COUNTIF(emplTpsE!$B$115:$F$120,U46)","v":0},"Philosophie",2,"1ère3","SENOT Xavier",{"$f":"COUNTIF(emplTpsE!$B$139:$F$144,Z46)","v":2},null,null,0,null,{"$f":"COUNTIF(emplTpsE!$B$163:$F$168,AE46)","v":0}]

{"sheet":"emplTpsP","index":6,"n_rows":168,"n_cols":6,"rows_kept":168,"cut":false,"hidden":false,"merged":[]}
[null,"Professeurs",null,"6ème1"]
["heures","Lundi","Mardi","Mercredi","Jeudi","Vendredi"]
["8h30-9h30","MONNERET Véronique","HOFFMANN Yannick","POUBO sam","SENOT Xavier","BOISSON Jean"]
["9h30-10h30","MONNERET Véronique","POUBO sam","HOFFMANN Yannick","POUBO sam","COURVOISIER Gérald"]
["10h30-11h30","MAIROT Virginie","HOFFMANN Yannick","SENOT Xavier","BOISSON Jean","BOISSON Jean"]
["11h30-12h30","LAMBERGER Stéphane","MAIROT Virginie","SENOT Xavier","DUFOUR Valérie","BOISSON Jean"]
["14h30-15h30","DUFOUR Valérie","ARNAUD Yann",null,null,"HOFFMANN Yannick"]
["15h30-16h30","MONNIER Bernard"]
[null,"Professeurs",null,"6ème2"]
["heures","Lundi","Mardi","Mercredi","Jeudi","Vendredi"]
["8h30-9h30","MAIRE Yves","BRULEBOIS Thomas","DUFOUR Valérie","MONNIER Bernard","PAGET François"]
["9h30-10h30","COURVOISIER Gérald","ONCLE sophie","LEGRAND Yvan","LEGRAND Yvan","ARNAUD Yann"]
["10h30-11h30","LEGRAND Yvan","SENOT Xavier","SENOT Xavier","MAIRE Yves","LEGRAND Yvan"]
["11h30-12h30","PAGET François","DUFOUR Valérie","LAMBERGER Stéphane","PUILLET Michel","PAGET François"]
["14h30-15h30",null,null,null,"MAIRE Yves"]
["15h30-16h30","PUILLET Michel","ONCLE sophie",null,null,"MAIRE Yves"]
[null,"Professeurs",null,"6ème3"]
["heures","Lundi","Mardi","Mercredi","Jeudi","Vendredi"]
["8h30-9h30"]
["9h30-10h30"]
["10h30-11h30"]
["11h30-12h30"]
["14h30-15h30"]
["15h30-16h30"]
[null,"Professeurs",null,"5ème1"]
["heures","Lundi","Mardi","Mercredi","Jeudi","Vendredi"]
["8h30-9h30","MAIRE Yves","SENOT Xavier","MONNIER Bernard","BOURDY William","BOISSON Jean"]
["9h30-10h30","BOISSON Jean","BOISSON Jean","BOISSON Jean","COURVOISIER Gérald","DUFOUR Valérie"]
["10h30-11h30","ONCLE sophie","BOURDY William","BOURDY William","MAIROT Virginie","LAMBERGER Stéphane"]
["11h30-12h30","ONCLE sophie","MAIRE Yves","MAIROT Virginie","DUFOUR Valérie","MAIRE Yves"]
["14h30-15h30","ARNAUD Yann",null,null,"SENOT Xavier"]
["15h30-16h30",null,null,null,"MAIRE Yves","SENOT Xavier"]
[null,"Professeurs",null,"5ème2"]
["heures","Lundi","Mardi","Mercredi","Jeudi","Vendredi"]
["8h30-9h30","MONNIER Bernard","MONNERET Véronique","SENOT Xavier","PAGET François","MANNIER Gilbert"]
["9h30-10h30","MATHIEU Daniel","PAGET François","PAGET François","MANNIER Gilbert","COURVOISIER Gérald"]
["10h30-11h30","MATHIEU Daniel","MATHIEU Daniel","MONNERET Véronique","MANNIER Gilbert","MATHIEU Daniel"]
["11h30-12h30","PUILLET Michel","LAMBERGER Stéphane","PUILLET Michel","ARNAUD Yann"]
["14h30-15h30","MANNIER Gilbert","SENOT Xavier",null,null,"BRULEBOIS Thomas"]
["15h30-16h30","DUFOUR Valérie",null,null,null,"DUFOUR Valérie"]
[null,null,null,"5eme3"]
["heures","Lundi","Mardi","Mercredi","Jeudi","Vendredi"]
["8h30-9h30"]
["9h30-10h30"]
["10h30-11h30"]
["11h30-12h30"]
["14h30-15h30"]
["15h30-16h30"]
[null,"Professeurs",null,"4ème1"]
["heures","Lundi","Mardi","Mercredi","Jeudi","Vendredi"]
["8h30-9h30","SENOT Xavier","BOISSON Jean","PAGET François","MANNIER Gilbert","MANNIER Gilbert"]
["9h30-10h30","PAGET François","MANNIER Gilbert","BOISSON Jean","BOISSON Jean","ONCLE sophie"]
["10h30-11h30","MANNIER Gilbert","BOISSON Jean","BRULEBOIS Thomas","SENOT Xavier","MONNIER Bernard"]
["11h30-12h30","MAIROT Virginie","BAILLY Thierry","BAILLY Thierry",null,"MAIROT Virginie"]
["14h30-15h30","DUFOUR Valérie","DUFOUR Valérie",null,null,"ARNAUD Yann"]
["15h30-16h30","ONCLE sophie","LAMBERGER Stéphane",null,"COURVOISIER Gérald","PAGET François"]
[null,"Professeurs",null,"4ème2"]
["heures","Lundi","Mardi","Mercredi","Jeudi","Vendredi"]
["8h30-9h30","SENOT Xavier","PAGET François","MONNIER Bernard","DUFOUR Valérie","PAGET François"]
["9h30-10h30","MATHIEU Daniel","MANNIER Gilbert","DUFOUR Valérie","PUILLET Michel","PUILLET Michel"]
["10h30-11h30","MATHIEU Daniel","MANNIER Gilbert","MATHIEU Daniel","SENOT Xavier","ARNAUD Yann"]
["11h30-12h30","MANNIER Gilbert","PAGET François","BAILLY Thierry","COURVOISIER Gérald","ONCLE sophie"]
["14h30-15h30","ONCLE sophie","MATHIEU Daniel",null,"MANNIER Gilbert","BAILLY Thierry"]
["15h30-16h30",null,null,null,"BRULEBOIS Thomas","LAMBERGER Stéphane"]
[null,"Professeurs",null,"4ème3"]
["heures"]
["8h30-9h30"]
["9h30-10h30"]
["10h30-11h30"]
["11h30-12h30"]
["14h30-15h30"]
["15h30-16h30"]
[null,"Professeurs",null,"3ème1"]
["heures","Lundi","Mardi","Mercredi","Jeudi","Vendredi"]
["8h30-9h30","MONNIER Bernard","SENOT Xavier","BOISSON Jean","COURVOISIER Gérald","SENOT Xavier"]
["9h30-10h30","SENOT Xavier","PAGET François","PUILLET Michel","BOISSON Jean","MAIRE Yves"]
["10h30-11h30","PUILLET Michel","ONCLE sophie","PAGET François","PAGET François","ARNAUD Yann"]
["11h30-12h30","BOISSON Jean","BOISSON Jean","BAILLY Thierry","DUFOUR Valérie","MAIRE Yves"]
["14h30-15h30","BAILLY Thierry",null,null,"LAMBERGER Stéphane","MAIRE Yves"]
["15h30-16h30","ONCLE sophie",null,null,"DUFOUR Valérie","MAIRE Yves"]
[null,"Professeurs",null,"3ème2"]
["heures","Lundi","Mardi","Mercredi","Jeudi","Vendredi"]
["8h30-9h30","MAIRE Yves","MONNERET Véronique","SENOT Xavier","MATHIEU Daniel","MATHIEU Daniel"]
["9h30-10h30","ARNAUD Yann","POUBO sam","MATHIEU Daniel","BAILLY Thierry","MAIRE Yves"]
["10h30-11h30","DUFOUR Valérie","MAIRE Yves","DUFOUR Valérie","MAIRE Yves","COURVOISIER Gérald"]
["11h30-12h30","LAMBERGER Stéphane","MAIROT Virginie","SENOT Xavier","MAIROT Virginie","POUBO sam"]
["14h30-15h30","MONNERET Véronique","MONNIER Bernard",null,"BAILLY Thierry"]
["15h30-16h30","MATHIEU Daniel",null,null,"SENOT Xavier","POUBO sam"]
[null,"Professeurs",null,"3ème3"]
["heures","Lundi","Mardi","Mercredi","Jeudi","Vendredi"]
["8h30-9h30"]
["9h30-10h30"]
["10h30-11h30"]
["11h30-12h30"]
["14h30-15h30"]
["15h30-16h30"]
[null,"Professeurs",null,"2nde1"]
["heures","Lundi","Mardi","Mercredi","Jeudi","Vendredi"]
["8h30-9h30","BOISSON Jean","BOISSON Jean","MAIROT Virginie","BAILLY Thierry","ONCLE sophie"]
["9h30-10h30","HOFFMANN Yannick","BOURDY William",null,"BOISSON Jean","BOURDY William"]
["10h30-11h30","HOFFMANN Yannick",null,"ONCLE sophie",null,"BOISSON Jean"]
["11h30-12h30",null,null,null,"MAIROT Virginie"]
["14h30-15h30",null,"LAMBERGER Stéphane",null,"HOFFMANN Yannick","BAILLY Thierry"]
["15h30-16h30","BOURDY William","HOFFMANN Yannick",null,"COURVOISIER Gérald"]
[null,"Professeurs",null,"2nde2"]
["heures","Lundi","Mardi","Mercredi","Jeudi","Vendredi"]
["8h30-9h30"]
["9h30-10h30"]
["10h30-11h30"]
["11h30-12h30"]
["14h30-15h30"]
["15h30-16h30"]
[null,"Professeurs",null,"2nde3"]
["heures","Lundi","Mardi","Mercredi","Jeudi","Vendredi"]
["8h30-9h30"]
["9h30-10h30"]
["10h30-11h30"]
["11h30-12h30"]
["14h30-15h30"]
["15h30-16h30"]
[null,"Professeurs",null,"1ère1"]
["heures","Lundi","Mardi","Mercredi","Jeudi","Vendredi"]
["8h30-9h30","MONNERET Véronique","COURVOISIER Gérald","BOURDY William","LAMBERGER Stéphane","BOISSON Jean"]
["9h30-10h30","BOISSON Jean","HOFFMANN Yannick","MONNERET Véronique","SENOT Xavier","SENOT Xavier"]
["10h30-11h30",null,"MAIROT Virginie","BAILLY Thierry","HOFFMANN Yannick"]
["11h30-12h30","BOURDY William",null,null,null,"BOISSON Jean"]
["14h30-15h30",null,"BOURDY William",null,"MAIROT Virginie","HOFFMANN Yannick"]
["15h30-16h30","BAILLY Thierry","HOFFMANN Yannick",null,null,"BOISSON Jean"]
[null,"Professeurs",null,"1ère2"]
["heures","Lundi","Mardi","Mercredi","Jeudi","Vendredi"]
["8h30-9h30","MATHIEU Daniel","BERTHELIER Josette","MONNERET Véronique","POUBO sam","HOFFMANN Yannick"]
["9h30-10h30","HOFFMANN Yannick","POUBO sam","MATHIEU Daniel","HOFFMANN Yannick","BAILLY Thierry"]
["10h30-11h30","BAILLY Thierry","MAIROT Virginie","SENOT Xavier","MATHIEU Daniel"]
["11h30-12h30",null,null,"MATHIEU Daniel","MAIROT Virginie"]
["14h30-15h30","COURVOISIER Gérald",null,null,"HOFFMANN Yannick","MONNERET Véronique"]
["15h30-16h30",null,"LAMBERGER Stéphane",null,null,"POUBO sam"]
[null,"Professeurs",null,"1ère3"]
["heures","Lundi","Mardi","Mercredi","Jeudi","Vendredi"]
["8h30-9h30","MONNERET Véronique","POUBO sam","BERTHELIER Josette","LAMBERGER Stéphane","BOISSON Jean"]
["9h30-10h30","BERTHELIER Josette","SENOT Xavier","COURVOISIER Gérald","MANNIER Gilbert","MONNERET Véronique"]
["10h30-11h30","BERTHELIER Josette","MAIROT Virginie","MANNIER Gilbert","BOISSON Jean","BOISSON Jean"]
["11h30-12h30","MAIROT Virginie","SENOT Xavier","POUBO sam","BERTHELIER Josette"]
["14h30-15h30",null,"BAILLY Thierry",null,null,"BAILLY Thierry"]
["15h30-16h30","POUBO sam","MANNIER Gilbert",null,"BOISSON Jean","MANNIER Gilbert"]
[null,"Professeurs",null,"Tle1"]
["heures","Lundi","Mardi","Mercredi","Jeudi","Vendredi"]
["8h30-9h30","COURVOISIER Gérald","BOISSON Jean","BOISSON Jean","MONNERET Véronique","BERTHELIER Josette"]
["9h30-10h30","MONNERET Véronique","BERTHELIER Josette","PAGET François","BOISSON Jean","PAGET François"]
["10h30-11h30","BERTHELIER Josette","SENOT Xavier","HOFFMANN Yannick","LAMBERGER Stéphane","MAIROT Virginie"]
["11h30-12h30","BAILLY Thierry","HOFFMANN Yannick","BERTHELIER Josette","BAILLY Thierry","HOFFMANN Yannick"]
["14h30-15h30","BOISSON Jean","SENOT Xavier"]
["15h30-16h30",null,"HOFFMANN Yannick",null,"PAGET François","MAIROT Virginie"]
[null,"Professeurs",null,"Tle2"]
["heures","Lundi","Mardi","Mercredi","Jeudi","Vendredi"]
["8h30-9h30","BERTHELIER Josette","COURVOISIER Gérald","MAIROT Virginie","BERTHELIER Josette","POUBO sam"]
["9h30-10h30","BERTHELIER Josette","BERTHELIER Josette","HOFFMANN Yannick","POUBO sam","MATHIEU Daniel"]
["10h30-11h30","HOFFMANN Yannick","HOFFMANN Yannick","ONCLE sophie","MAIROT Virginie","MATHIEU Daniel"]
["11h30-12h30","LAMBERGER Stéphane","MATHIEU Daniel","BAILLY Thierry","BAILLY Thierry","ONCLE sophie"]
["14h30-15h30","HOFFMANN Yannick","SENOT Xavier",null,"SENOT Xavier","MATHIEU Daniel"]
["15h30-16h30",null,"POUBO sam"]
[null,"Professeurs",null,"Tle3"]
["heures","Lundi","Mardi","Mercredi","Jeudi","Vendredi"]
["8h30-9h30"]
["9h30-10h30"]
["10h30-11h30"]
["11h30-12h30"]
["14h30-15h30"]
["15h30-16h30"]

{"sheet":"emplTpsE","index":7,"n_rows":168,"n_cols":6,"rows_kept":168,"cut":false,"hidden":false,"merged":[]}
[null,"Elèves",null,"6ème1"]
["heures","Lundi","Mardi","Mercredi","Jeudi","Vendredi"]
["8h30-9h30","EPS","Anglais","Histoire Géographie","Expression Ecrite","Mathématiques"]
["9h30-10h30","EPS","Histoire Géographie","Anglais","Histoire Géographie","Conduite"]
["10h30-11h30","SVT","Anglais","Expression Ecrite","Mathématiques","Mathématiques"]
["11h30-12h30","Physique Chimie","SVT","Composition Française","Orthographe Grammaire","Mathématiques"]
["14h30-15h30","Orthographe Grammaire","Arts Plastiques",null,null,"Anglais"]
["15h30-16h30","EDHC"]
[null,"Elèves",null,"6ème2"]
["heures","Lundi","Mardi","Mercredi","Jeudi","Vendredi"]
["8h30-9h30","Anglais","Composition Française","Orthographe Grammaire","EDHC","Histoire Géographie"]
["9h30-10h30","Conduite","EPS","Mathématiques","Mathématiques","Arts Plastiques"]
["10h30-11h30","Mathématiques","Expression Ecrite","Expression Ecrite","Anglais","Mathématiques"]
["11h30-12h30","Histoire Géographie","Orthographe Grammaire","Physique Chimie","SVT","Histoire Géographie"]
["14h30-15h30",null,null,null,"Anglais"]
["15h30-16h30","SVT","EPS",null,null,"Anglais"]
[null,"Elèves",null,"6ème3"]
["heures","Lundi","Mardi","Mercredi","Jeudi","Vendredi"]
["8h30-9h30"]
["9h30-10h30"]
["10h30-11h30"]
["11h30-12h30"]
["14h30-15h30"]
["15h30-16h30"]
[null,"Elèves",null,"5ème1"]
["heures","Lundi","Mardi","Mercredi","Jeudi","Vendredi"]
["8h30-9h30","Anglais","Composition Française","EDHC","Histoire Géographie","Mathématiques"]
["9h30-10h30","Mathématiques","Mathématiques","Mathématiques","Conduite","Orthographe Grammaire"]
["10h30-11h30","EPS","Histoire Géographie","Histoire Géographie","SVT","Physique Chimie"]
["11h30-12h30","EPS","Anglais","SVT","Orthographe Grammaire","Anglais"]
["14h30-15h30","Arts Plastiques",null,null,"Expression Ecrite"]
["15h30-16h30",null,null,null,"Anglais","Expression Ecrite"]
[null,"Elèves",null,"5ème2"]
["heures","Lundi","Mardi","Mercredi","Jeudi","Vendredi"]
["8h30-9h30","EDHC","EPS","Expression Ecrite","Histoire Géographie","Anglais"]
["9h30-10h30","Mathématiques","Histoire Géographie","Histoire Géographie","Anglais","Conduite"]
["10h30-11h30","Mathématiques","Mathématiques","EPS","Anglais","Mathématiques"]
["11h30-12h30","SVT","Physique Chimie","SVT","Arts Plastiques"]
["14h30-15h30","Anglais","Expression Ecrite",null,null,"Composition Française"]
["15h30-16h30","Orthographe Grammaire",null,null,null,"Orthographe Grammaire"]
[null,"Elèves",null,"5ème3"]
["heures","Lundi","Mardi","Mercredi","Jeudi","Vendredi"]
["8h30-9h30"]
["9h30-10h30"]
["10h30-11h30"]
["11h30-12h30"]
["14h30-15h30"]
["15h30-16h30"]
[null,"Elèves",null,"4ème13"]
["heures","Lundi","Mardi","Mercredi","Jeudi","Vendredi"]
["8h30-9h30","Expression Ecrite","Mathématiques","Histoire Géographie","Anglais","Anglais"]
["9h30-10h30","Histoire Géographie","Anglais","Mathématiques","Mathématiques","EPS"]
["10h30-11h30","Anglais","Mathématiques","Composition Française","Expression Ecrite","EDHC"]
["11h30-12h30","SVT","LV2","LV2",null,"SVT"]
["14h30-15h30","Orthographe Grammaire","Orthographe Grammaire",null,null,"Arts Plastiques"]
["15h30-16h30","EPS","Physique Chimie",null,"Conduite","Histoire Géographie"]
[null,"Elèves",null,"4ème2"]
["heures","Lundi","Mardi","Mercredi","Jeudi","Vendredi"]
["8h30-9h30","Expression Ecrite","Histoire Géographie","EDHC","Orthographe Grammaire","Histoire Géographie"]
["9h30-10h30","Mathématiques","Anglais","Orthographe Grammaire","SVT","SVT"]
["10h30-11h30","Mathématiques","Anglais","Mathématiques","Expression Ecrite","Arts Plastiques"]
["11h30-12h30","Anglais","Histoire Géographie","LV2","Conduite","EPS"]
["14h30-15h30","EPS","Mathématiques",null,"Anglais","LV2"]
["15h30-16h30",null,null,null,"Composition Française","Physique Chimie"]
[null,"Elèves",null,"4ème3"]
["heures"]
["8h30-9h30"]
["9h30-10h30"]
["10h30-11h30"]
["11h30-12h30"]
["14h30-15h30"]
["15h30-16h30"]
[null,"Elèves",null,"3ème1"]
["heures","Lundi","Mardi","Mercredi","Jeudi","Vendredi"]
["8h30-9h30","EDHC","Composition Française","Mathématiques","Conduite","Expression Ecrite"]
["9h30-10h30","Expression Ecrite","Histoire Géographie","SVT","Mathématiques","Anglais"]
["10h30-11h30","SVT","EPS","Histoire Géographie","Histoire Géographie","Arts Plastiques"]
["11h30-12h30","Mathématiques","Mathématiques","LV2","Orthographe Grammaire","Anglais"]
["14h30-15h30","LV2",null,null,"Physique Chimie","Anglais"]
["15h30-16h30","EPS",null,null,"Orthographe Grammaire","Anglais"]
[null,"Elèves",null,"3ème2"]
["heures","Lundi","Mardi","Mercredi","Jeudi","Vendredi"]
["8h30-9h30","Anglais","EPS","Expression Ecrite","Mathématiques","Mathématiques"]
["9h30-10h30","Arts Plastiques","Histoire Géographie","Mathématiques","LV2","Anglais"]
["10h30-11h30","Orthographe Grammaire","Anglais","Orthographe Grammaire","Anglais","Conduite"]
["11h30-12h30","Physique Chimie","SVT","Expression Ecrite","SVT","Histoire Géographie"]
["14h30-15h30","EPS","EDHC",null,"LV2"]
["15h30-16h30","Mathématiques",null,null,"Composition Française","Histoire Géographie"]
[null,"Elèves",null,"3ème3"]
["heures","Lundi","Mardi","Mercredi","Jeudi","Vendredi"]
["8h30-9h30"]
["9h30-10h30"]
["10h30-11h30"]
["11h30-12h30"]
["14h30-15h30"]
["15h30-16h30"]
[null,"Elèves",null,"2nde1"]
["heures","Lundi","Mardi","Mercredi","Jeudi","Vendredi"]
["8h30-9h30","Mathématiques","Mathématiques","SVT","LV2","EPS"]
["9h30-10h30","Anglais","Histoire Géographie",null,"Mathématiques","Histoire Géographie"]
["10h30-11h30","Anglais",null,"EPS",null,"Mathématiques"]
["11h30-12h30",null,null,null,"SVT"]
["14h30-15h30",null,"Physique Chimie",null,"Anglais","LV2"]
["15h30-16h30","Histoire Géographie","Anglais",null,"Conduite"]
[null,"Elèves",null,"2nde2"]
["heures","Lundi","Mardi","Mercredi","Jeudi","Vendredi"]
["8h30-9h30"]
["9h30-10h30"]
["10h30-11h30"]
["11h30-12h30"]
["14h30-15h30"]
["15h30-16h30"]
[null,"Elèves",null,"2nde3"]
["heures","Lundi","Mardi","Mercredi","Jeudi","Vendredi"]
["8h30-9h30"]
["9h30-10h30"]
["10h30-11h30"]
["11h30-12h30"]
["14h30-15h30"]
["15h30-16h30"]
[null,"Elèves",null,"1ère1"]
["heures","Lundi","Mardi","Mercredi","Jeudi","Vendredi"]
["8h30-9h30","EPS","Conduite","Histoire Géographie","Physique Chimie","Mathématiques"]
["9h30-10h30","Mathématiques","Anglais","EPS","Philosophie","Philosophie"]
["10h30-11h30",null,"SVT","LV2","Anglais"]
["11h30-12h30","Histoire Géographie",null,null,null,"Mathématiques"]
["14h30-15h30",null,"Histoire Géographie",null,"SVT","Anglais"]
["15h30-16h30","LV2","Anglais",null,null,"Mathématiques"]
[null,"Elèves",null,"1ère2"]
["heures","Lundi","Mardi","Mercredi","Jeudi","Vendredi"]
["8h30-9h30","Mathématiques","Français","EPS","Histoire Géographie","Anglais"]
["9h30-10h30","Anglais","Histoire Géographie","Mathématiques","Anglais","LV2"]
["10h30-11h30","LV2","SVT","Philosophie","Mathématiques"]
["11h30-12h30",null,null,"Mathématiques","SVT"]
["14h30-15h30","Conduite",null,null,"Anglais","EPS"]
["15h30-16h30",null,"Physique Chimie",null,null,"Histoire Géographie"]
[null,"Elèves",null,"1ère3"]
["heures","Lundi","Mardi","Mercredi","Jeudi","Vendredi"]
["8h30-9h30","EPS","Histoire Géographie","Français","Physique Chimie","Mathématiques"]
["9h30-10h30","Français","Philosophie","Conduite","Anglais","EPS"]
["10h30-11h30","Français","SVT","Anglais","Mathématiques","Mathématiques"]
["11h30-12h30","SVT","Philosophie","Histoire Géographie","Français"]
["14h30-15h30",null,"LV2",null,null,"LV2"]
["15h30-16h30","Histoire Géographie","Anglais",null,"Mathématiques","Anglais"]
[null,"Elèves",null,"Tle1"]
["heures","Lundi","Mardi","Mercredi","Jeudi","Vendredi"]
["8h30-9h30","Conduite","Mathématiques","Mathématiques","EPS","Français"]
["9h30-10h30","EPS","Français","Histoire Géographie","Mathématiques","Histoire Géographie"]
["10h30-11h30","Français","Philosophie","Anglais","Physique Chimie","SVT"]
["11h30-12h30","LV2","Anglais","Français","LV2","Anglais"]
["14h30-15h30","Mathématiques","Philosophie"]
["15h30-16h30",null,"Anglais",null,"Histoire Géographie","SVT"]
[null,"Elèves",null,"Tle2"]
["heures","Lundi","Mardi","Mercredi","Jeudi","Vendredi"]
["8h30-9h30","Français","Conduite","SVT","Français","Histoire Géographie"]
["9h30-10h30","Français","Français","Anglais","Histoire Géographie","Mathématiques"]
["10h30-11h30","Anglais","Anglais","EPS","SVT","Mathématiques"]
["11h30-12h30","Physique Chimie","Mathématiques","LV2","LV2","EPS"]
["14h30-15h30","Anglais","Philosophie",null,"Philosophie","Mathématiques"]
["15h30-16h30",null,"Histoire Géographie"]
[null,"Elèves",null,"Tle3"]
["heures","Lundi","Mardi","Mercredi","Jeudi","Vendredi"]
["8h30-9h30"]
["9h30-10h30"]
["10h30-11h30"]
["11h30-12h30"]
["14h30-15h30"]
["15h30-16h30"]

{"sheet":"TC","index":8,"n_rows":168,"n_cols":7,"rows_kept":168,"cut":false,"hidden":true,"merged":[]}
[]
["heures","Lundi","Mardi","Mercredi","Jeudi","Vendredi"]
["8h30-9h30",1,7,13,17,23]
["9h30-10h30",2,8,14,18,24]
["10h30-11h30",3,9,15,19,25]
["11h30-12h30",4,10,16,20,26]
["14h30-15h30",5,11,null,21,27]
["15h30-16h30",6,12,null,22,28]
[]
["heures","Lundi","Mardi","Mercredi","Jeudi","Vendredi"]
["8h30-9h30",1,7,13,17,23]
["9h30-10h30",2,8,14,18,24]
["10h30-11h30",3,9,15,19,25]
["11h30-12h30",4,10,16,20,26]
["14h30-15h30",5,11,null,21,27]
["15h30-16h30",6,12,null,22,28]
[]
["heures","Lundi","Mardi","Mercredi","Jeudi","Vendredi"]
["8h30-9h30",1,7,13,17,23]
["9h30-10h30",2,8,14,18,24]
["10h30-11h30",3,9,15,19,25]
["11h30-12h30",4,10,16,20,26]
["14h30-15h30",5,11,null,21,27]
["15h30-16h30",6,12,null,22,28]
[]
["heures","Lundi","Mardi","Mercredi","Jeudi","Vendredi"]
["8h30-9h30",1,7,13,17,23]
["9h30-10h30",2,8,14,18,24]
["10h30-11h30",3,9,15,19,25]
["11h30-12h30",4,10,16,20,26]
["14h30-15h30",5,11,null,21,27]
["15h30-16h30",6,12,null,22,28]
[]
["heures","Lundi","Mardi","Mercredi","Jeudi","Vendredi"]
["8h30-9h30",1,7,13,17,23]
["9h30-10h30",2,8,14,18,24]
["10h30-11h30",3,9,15,19,25,"5eme2"]
["11h30-12h30",4,10,16,20,26]
["14h30-15h30",5,11,null,21,27]
["15h30-16h30",6,12,null,22,28]
[]
["heures","Lundi","Mardi","Mercredi","Jeudi","Vendredi"]
["8h30-9h30",1,7,13,17,23]
["9h30-10h30",2,8,14,18,24]
["10h30-11h30",3,9,15,19,25,"5eme3"]
["11h30-12h30",4,10,16,20,26]
["14h30-15h30",5,11,null,21,27]
["15h30-16h30",6,12,null,22,28]
[]
["heures","Lundi","Mardi","Mercredi","Jeudi","Vendredi"]
["8h30-9h30",1,7,13,17,23]
["9h30-10h30",2,8,14,18,24,"4eme1"]
["10h30-11h30",3,9,15,19,25]
["11h30-12h30",4,10,16,20,26]
["14h30-15h30",5,11,null,21,27]
["15h30-16h30",6,12,null,22,28]
[]
["heures","Lundi","Mardi","Mercredi","Jeudi","Vendredi"]
["8h30-9h30",1,7,13,17,23]
["9h30-10h30",2,8,14,18,24,"4eme2"]
["10h30-11h30",3,9,15,19,25]
["11h30-12h30",4,10,16,20,26]
["14h30-15h30",5,11,null,21,27]
["15h30-16h30",6,12,null,22,28]
[]
["heures","Lundi","Mardi","Mercredi","Jeudi","Vendredi"]
["8h30-9h30",1,7,13,17,23]
["9h30-10h30",2,8,14,18,24,"4eme3"]
["10h30-11h30",3,9,15,19,25]
["11h30-12h30",4,10,16,20,26]
["14h30-15h30",5,11,null,21,27]
["15h30-16h30",6,12,null,22,28]
[]
["heures","Lundi","Mardi","Mercredi","Jeudi","Vendredi"]
["8h30-9h30",1,7,13,17,23]
["9h30-10h30",2,8,14,18,24,"3ème1"]
["10h30-11h30",3,9,15,19,25]
["11h30-12h30",4,10,16,20,26]
["14h30-15h30",5,11,null,21,27]
["15h30-16h30",6,12,null,22,28]
[]
["heures","Lundi","Mardi","Mercredi","Jeudi","Vendredi"]
["8h30-9h30",1,7,13,17,23]
["9h30-10h30",2,8,14,18,24,"3ème2"]
["10h30-11h30",3,9,15,19,25]
["11h30-12h30",4,10,16,20,26]
["14h30-15h30",5,11,null,21,27]
["15h30-16h30",6,12,null,22,28]
[]
["heures","Lundi","Mardi","Mercredi","Jeudi","Vendredi"]
["8h30-9h30",1,7,13,17,23]
["9h30-10h30",2,8,14,18,24,"3émé3"]
["10h30-11h30",3,9,15,19,25]
["11h30-12h30",4,10,16,20,26]
["14h30-15h30",5,11,null,21,27]
["15h30-16h30",6,12,null,22,28]
[]
["heures","Lundi","Mardi","Mercredi","Jeudi","Vendredi"]
["8h30-9h30",1,7,13,17,23]
["9h30-10h30",2,8,14,18,24,"2nde1"]
["10h30-11h30",3,9,15,19,25]
["11h30-12h30",4,10,16,20,26]
["14h30-15h30",5,11,null,21,27]
["15h30-16h30",6,12,null,22,28]
[]
["heures","Lundi","Mardi","Mercredi","Jeudi","Vendredi"]
["8h30-9h30",1,7,13,17,23]
["9h30-10h30",2,8,14,18,24,"2nde2"]
["10h30-11h30",3,9,15,19,25]
["11h30-12h30",4,10,16,20,26]
["14h30-15h30",5,11,null,21,27]
["15h30-16h30",6,12,null,22,28]
[]
["heures","Lundi","Mardi","Mercredi","Jeudi","Vendredi"]
["8h30-9h30",1,7,13,17,23]
["9h30-10h30",2,8,14,18,24,"2nde3"]
["10h30-11h30",3,9,15,19,25]
["11h30-12h30",4,10,16,20,26]
["14h30-15h30",5,11,null,21,27]
["15h30-16h30",6,12,null,22,28]
[]
["heures","Lundi","Mardi","Mercredi","Jeudi","Vendredi"]
["8h30-9h30",1,7,13,17,23]
["9h30-10h30",2,8,14,18,24,"1ére1"]
["10h30-11h30",3,9,15,19,25]
["11h30-12h30",4,10,16,20,26]
["14h30-15h30",5,11,null,21,27]
["15h30-16h30",6,12,null,22,28]
[]
["heures","Lundi","Mardi","Mercredi","Jeudi","Vendredi"]
["8h30-9h30",1,7,13,17,23]
["9h30-10h30",2,8,14,18,24,"1ère2"]
["10h30-11h30",3,9,15,19,25]
["11h30-12h30",4,10,16,20,26]
["14h30-15h30",5,11,null,21,27]
["15h30-16h30",6,12,null,22,28]
[]
["heures","Lundi","Mardi","Mercredi","Jeudi","Vendredi"]
["8h30-9h30",1,7,13,17,23]
["9h30-10h30",2,8,14,18,24]
["10h30-11h30",3,9,15,19,25,"1ère3"]
["11h30-12h30",4,10,16,20,26]
["14h30-15h30",5,11,null,21,27]
["15h30-16h30",6,12,null,22,28]
[]
["heures","Lundi","Mardi","Mercredi","Jeudi","Vendredi"]
["8h30-9h30",1,7,13,17,23]
["9h30-10h30",2,8,14,18,24,"Tle1"]
["10h30-11h30",3,9,15,19,25]
["11h30-12h30",4,10,16,20,26]
["14h30-15h30",5,11,null,21,27]
["15h30-16h30",6,12,null,22,28]
[]
["heures","Lundi","Mardi","Mercredi","Jeudi","Vendredi"]
["8h30-9h30",1,7,13,17,23]
["9h30-10h30",2,8,14,18,24,"Tle2"]
["10h30-11h30",3,9,15,19,25]
["11h30-12h30",4,10,16,20,26]
["14h30-15h30",5,11,null,21,27]
["15h30-16h30",6,12,null,22,28]
[]
["heures","Lundi","Mardi","Mercredi","Jeudi","Vendredi"]
["8h30-9h30",1,7,13,17,23]
["9h30-10h30",2,8,14,18,24,"Tle3"]
["10h30-11h30",3,9,15,19,25]
["11h30-12h30",4,10,16,20,26]
["14h30-15h30",5,11,null,21,27]
["15h30-16h30",6,12,null,22,28]